Department,Entity,Transaction Date,Expense Type,Expense Area,Supplier,Transaction No.,Amount
"Department for Business, Energy and Industrial Strategy",The Coal Authority,30/09/2017,Hotel & Accommodation,Application Management,Redfern Travel Ltd,19746,12
"Department for Business, Energy and Industrial Strategy",The Coal Authority,10/10/2017,Incidentals,Application Management,Staff Expenses Control,20141,9.58
"Department for Business, Energy and Industrial Strategy",The Coal Authority,17/05/2017,Internet Service Provider & Comms,Application Management,Government Procurement Card,19276,6.99
"Department for Business, Energy and Industrial Strategy",The Coal Authority,17/07/2017,Internet Service Provider & Comms,Application Management,Government Procurement Card,20113,53.94
"Department for Business, Energy and Industrial Strategy",The Coal Authority,09/10/2017,Software Support & Maintenance - On Premise,Application Management,Firmstep,19608,8500
"Department for Business, Energy and Industrial Strategy",The Coal Authority,10/10/2017,Subsistence Allowances,Application Management,Staff Expenses Control,20141,4.39
"Department for Business, Energy and Industrial Strategy",The Coal Authority,25/07/2017,Business Entertainment / Hospitality,Board,S P Foods,19970,93.5
"Department for Business, Energy and Industrial Strategy",The Coal Authority,02/08/2017,Business Entertainment / Hospitality,Board,S P Foods,19969,71.9
"Department for Business, Energy and Industrial Strategy",The Coal Authority,21/09/2017,Business Entertainment / Hospitality,Board,S P Foods,19976,85.35
"Department for Business, Energy and Industrial Strategy",The Coal Authority,31/08/2017,Fares - Rail,Board,Staff Expenses Control,19533,117
"Department for Business, Energy and Industrial Strategy",The Coal Authority,26/09/2017,Fares - Rail,Board,Staff Expenses Control,19752,189.5
"Department for Business, Energy and Industrial Strategy",The Coal Authority,30/09/2017,Hotel & Accommodation,Board,Redfern Travel Ltd,19746,211
"Department for Business, Energy and Industrial Strategy",The Coal Authority,31/08/2017,Incidentals,Board,Staff Expenses Control,19533,16
"Department for Business, Energy and Industrial Strategy",The Coal Authority,26/09/2017,Incidentals,Board,Staff Expenses Control,19752,16
"Department for Business, Energy and Industrial Strategy",The Coal Authority,02/08/2017,Mileage Payments,Board,Staff Expenses Control,19533,23.4
"Department for Business, Energy and Industrial Strategy",The Coal Authority,08/08/2017,Mileage Payments,Board,Staff Expenses Control,19533,23.4
"Department for Business, Energy and Industrial Strategy",The Coal Authority,15/08/2017,Mileage Payments,Board,Staff Expenses Control,19533,23.4
"Department for Business, Energy and Industrial Strategy",The Coal Authority,16/08/2017,Mileage Payments,Board,Staff Expenses Control,19533,134.55
"Department for Business, Energy and Industrial Strategy",The Coal Authority,17/08/2017,Mileage Payments,Board,Staff Expenses Control,19533,23.4
"Department for Business, Energy and Industrial Strategy",The Coal Authority,22/08/2017,Mileage Payments,Board,Staff Expenses Control,19533,23.4
"Department for Business, Energy and Industrial Strategy",The Coal Authority,29/08/2017,Mileage Payments,Board,Staff Expenses Control,19533,121.95
"Department for Business, Energy and Industrial Strategy",The Coal Authority,30/08/2017,Mileage Payments,Board,Staff Expenses Control,19533,23.4
"Department for Business, Energy and Industrial Strategy",The Coal Authority,31/08/2017,Mileage Payments,Board,Staff Expenses Control,19533,3.15
"Department for Business, Energy and Industrial Strategy",The Coal Authority,21/09/2017,Mileage Payments,Board,Staff Expenses Control,19752,9
"Department for Business, Energy and Industrial Strategy",The Coal Authority,22/09/2017,Mileage Payments,Board,Staff Expenses Control,19752,23.4
"Department for Business, Energy and Industrial Strategy",The Coal Authority,26/09/2017,Mileage Payments,Board,Staff Expenses Control,19752,3.15
"Department for Business, Energy and Industrial Strategy",The Coal Authority,31/10/2017,Staff Events,Board,19752-S Dingle Irrecoverable VAT,20389,11.56
"Department for Business, Energy and Industrial Strategy",The Coal Authority,21/09/2017,Staff Events,Board,Staff Expenses Control,19752,57.79
"Department for Business, Energy and Industrial Strategy",The Coal Authority,26/09/2017,Subsistence Allowances,Board,Staff Expenses Control,19533,5.25
"Department for Business, Energy and Industrial Strategy",The Coal Authority,26/10/2017,Applications Consultancy,BOSS Programme,Sapphire Systems Plc,20166,1036.6
"Department for Business, Energy and Industrial Strategy",The Coal Authority,26/10/2017,Applications Consultancy,BOSS Programme,Sapphire Systems Plc,20167,1500.95
"Department for Business, Energy and Industrial Strategy",The Coal Authority,14/09/2017,Business Entertainment / Hospitality,BOSS Programme,S P Foods,19972,72
"Department for Business, Energy and Industrial Strategy",The Coal Authority,15/09/2017,Business Entertainment / Hospitality,BOSS Programme,S P Foods,19974,72
"Department for Business, Energy and Industrial Strategy",The Coal Authority,26/10/2017,CY - Intangible IT - Additions,BOSS Programme,Sapphire Systems Plc,20167,5550
"Department for Business, Energy and Industrial Strategy",The Coal Authority,17/10/2017,CY - Intangible IT - Additions,BOSS Programme,Sapphire Systems Plc,19807,-276.36
"Department for Business, Energy and Industrial Strategy",The Coal Authority,30/09/2017,Fares - Rail,BOSS Programme,Redfern Travel Ltd,19746,177
"Department for Business, Energy and Industrial Strategy",The Coal Authority,30/09/2017,Hotel & Accommodation,BOSS Programme,Redfern Travel Ltd,19746,116.78
"Department for Business, Energy and Industrial Strategy",The Coal Authority,12/10/2017,Software Support & Maintenance - On Premise,BOSS Programme,Kontrolla,19786,928.67
"Department for Business, Energy and Industrial Strategy",The Coal Authority,22/09/2017,Temporary Contractors,BOSS Programme,Hays,19177,1950
"Department for Business, Energy and Industrial Strategy",The Coal Authority,22/09/2017,Temporary Contractors,BOSS Programme,Hays,19179,1950
"Department for Business, Energy and Industrial Strategy",The Coal Authority,04/10/2017,Temporary Contractors,BOSS Programme,Hays,19593,1950
"Department for Business, Energy and Industrial Strategy",The Coal Authority,04/10/2017,Temporary Contractors,BOSS Programme,Hays,19594,1950
"Department for Business, Energy and Industrial Strategy",The Coal Authority,18/10/2017,Temporary Contractors,BOSS Programme,Hays,19985,2340
"Department for Business, Energy and Industrial Strategy",The Coal Authority,10/10/2017,Infrastructure Consultancy,Business Analysis,Scisys Uk Ltd,19918,12751
"Department for Business, Energy and Industrial Strategy",The Coal Authority,01/08/2017,Business Meetings,Business Development,Government Procurement Card,20113,5
"Department for Business, Energy and Industrial Strategy",The Coal Authority,02/08/2017,Business Meetings,Business Development,Government Procurement Card,20113,15.3
"Department for Business, Energy and Industrial Strategy",The Coal Authority,11/09/2017,Fares - Public Transport,Business Development,Staff Expenses Control,19137,3.5
"Department for Business, Energy and Industrial Strategy",The Coal Authority,20/09/2017,Fares - Public Transport,Business Development,Staff Expenses Control,19137,3.5
"Department for Business, Energy and Industrial Strategy",The Coal Authority,04/10/2017,Fares - Public Transport,Business Development,Staff Expenses Control,19752,3.5
"Department for Business, Energy and Industrial Strategy",The Coal Authority,07/10/2017,Fares - Public Transport,Business Development,Staff Expenses Control,19752,2.5
"Department for Business, Energy and Industrial Strategy",The Coal Authority,11/10/2017,Fares - Public Transport,Business Development,Staff Expenses Control,19934,2.5
"Department for Business, Energy and Industrial Strategy",The Coal Authority,18/10/2017,Fares - Public Transport,Business Development,Staff Expenses Control,19934,2.5
"Department for Business, Energy and Industrial Strategy",The Coal Authority,30/09/2017,Fares - Rail,Business Development,Redfern Travel Ltd,19746,312
"Department for Business, Energy and Industrial Strategy",The Coal Authority,12/07/2017,Fuel (Vehicle),Business Development,Government Procurement Card,20113,48.82
"Department for Business, Energy and Industrial Strategy",The Coal Authority,13/07/2017,Fuel (Vehicle),Business Development,Government Procurement Card,20113,25.41
"Department for Business, Energy and Industrial Strategy",The Coal Authority,19/07/2017,Fuel (Vehicle),Business Development,Government Procurement Card,20113,45.27
"Department for Business, Energy and Industrial Strategy",The Coal Authority,20/07/2017,Fuel (Vehicle),Business Development,Government Procurement Card,20113,33.33
"Department for Business, Energy and Industrial Strategy",The Coal Authority,26/07/2017,Fuel (Vehicle),Business Development,Government Procurement Card,20113,16.67
"Department for Business, Energy and Industrial Strategy",The Coal Authority,26/07/2017,Fuel (Vehicle),Business Development,Government Procurement Card,20113,40
"Department for Business, Energy and Industrial Strategy",The Coal Authority,30/09/2017,Hotel & Accommodation,Business Development,Redfern Travel Ltd,19746,475.9
"Department for Business, Energy and Industrial Strategy",The Coal Authority,04/07/2017,Incidentals,Business Development,Government Procurement Card,20113,4.3
"Department for Business, Energy and Industrial Strategy",The Coal Authority,11/07/2017,Incidentals,Business Development,Government Procurement Card,20113,6.9
"Department for Business, Energy and Industrial Strategy",The Coal Authority,11/07/2017,Incidentals,Business Development,Government Procurement Card,20113,7.7
"Department for Business, Energy and Industrial Strategy",The Coal Authority,12/07/2017,Incidentals,Business Development,Government Procurement Card,20113,7.7
"Department for Business, Energy and Industrial Strategy",The Coal Authority,13/07/2017,Incidentals,Business Development,Government Procurement Card,20113,11.5
"Department for Business, Energy and Industrial Strategy",The Coal Authority,13/07/2017,Incidentals,Business Development,Government Procurement Card,20113,3.9
"Department for Business, Energy and Industrial Strategy",The Coal Authority,18/07/2017,Incidentals,Business Development,Government Procurement Card,20113,11.5
"Department for Business, Energy and Industrial Strategy",The Coal Authority,18/07/2017,Incidentals,Business Development,Government Procurement Card,20113,11.5
"Department for Business, Energy and Industrial Strategy",The Coal Authority,27/07/2017,Incidentals,Business Development,Government Procurement Card,20113,9
"Department for Business, Energy and Industrial Strategy",The Coal Authority,24/08/2017,Incidentals,Business Development,Staff Expenses Control,19533,5.58
"Department for Business, Energy and Industrial Strategy",The Coal Authority,21/09/2017,Incidentals,Business Development,Staff Expenses Control,19533,4.92
"Department for Business, Energy and Industrial Strategy",The Coal Authority,21/09/2017,Incidentals,Business Development,Staff Expenses Control,19533,3.67
"Department for Business, Energy and Industrial Strategy",The Coal Authority,06/06/2017,Mileage Payments,Business Development,Staff Expenses Control,19533,11.85
"Department for Business, Energy and Industrial Strategy",The Coal Authority,06/06/2017,Mileage Payments,Business Development,Staff Expenses Control,19533,11.77
"Department for Business, Energy and Industrial Strategy",The Coal Authority,11/09/2017,Mileage Payments,Business Development,Staff Expenses Control,19137,7.2
"Department for Business, Energy and Industrial Strategy",The Coal Authority,12/09/2017,Mileage Payments,Business Development,Staff Expenses Control,19137,8.51
"Department for Business, Energy and Industrial Strategy",The Coal Authority,12/09/2017,Mileage Payments,Business Development,Staff Expenses Control,19137,8.53
"Department for Business, Energy and Industrial Strategy",The Coal Authority,18/09/2017,Mileage Payments,Business Development,Staff Expenses Control,19137,1.8
"Department for Business, Energy and Industrial Strategy",The Coal Authority,18/09/2017,Mileage Payments,Business Development,Staff Expenses Control,19533,11.77
"Department for Business, Energy and Industrial Strategy",The Coal Authority,18/09/2017,Mileage Payments,Business Development,Staff Expenses Control,19533,11.84
"Department for Business, Energy and Industrial Strategy",The Coal Authority,19/09/2017,Mileage Payments,Business Development,Staff Expenses Control,19137,31.79
"Department for Business, Energy and Industrial Strategy",The Coal Authority,19/09/2017,Mileage Payments,Business Development,Staff Expenses Control,19137,31.37
"Department for Business, Energy and Industrial Strategy",The Coal Authority,20/09/2017,Mileage Payments,Business Development,Staff Expenses Control,19137,7.2
"Department for Business, Energy and Industrial Strategy",The Coal Authority,21/09/2017,Mileage Payments,Business Development,Staff Expenses Control,19137,2.87
"Department for Business, Energy and Industrial Strategy",The Coal Authority,21/09/2017,Mileage Payments,Business Development,Staff Expenses Control,19137,30.42
"Department for Business, Energy and Industrial Strategy",The Coal Authority,21/09/2017,Mileage Payments,Business Development,Staff Expenses Control,19137,30.33
"Department for Business, Energy and Industrial Strategy",The Coal Authority,21/09/2017,Mileage Payments,Business Development,Staff Expenses Control,19137,3.54
"Department for Business, Energy and Industrial Strategy",The Coal Authority,21/09/2017,Mileage Payments,Business Development,Staff Expenses Control,19533,32.86
"Department for Business, Energy and Industrial Strategy",The Coal Authority,21/09/2017,Mileage Payments,Business Development,Staff Expenses Control,19533,33.05
"Department for Business, Energy and Industrial Strategy",The Coal Authority,27/09/2017,Mileage Payments,Business Development,Staff Expenses Control,19137,24.25
"Department for Business, Energy and Industrial Strategy",The Coal Authority,27/09/2017,Mileage Payments,Business Development,Staff Expenses Control,19137,24.84
"Department for Business, Energy and Industrial Strategy",The Coal Authority,27/09/2017,Mileage Payments,Business Development,Staff Expenses Control,19533,22.07
"Department for Business, Energy and Industrial Strategy",The Coal Authority,27/09/2017,Mileage Payments,Business Development,Staff Expenses Control,19533,21.98
"Department for Business, Energy and Industrial Strategy",The Coal Authority,04/10/2017,Mileage Payments,Business Development,Staff Expenses Control,19752,5.94
"Department for Business, Energy and Industrial Strategy",The Coal Authority,04/10/2017,Mileage Payments,Business Development,Staff Expenses Control,19752,6.09
"Department for Business, Energy and Industrial Strategy",The Coal Authority,07/10/2017,Mileage Payments,Business Development,Staff Expenses Control,19752,5.94
"Department for Business, Energy and Industrial Strategy",The Coal Authority,07/10/2017,Mileage Payments,Business Development,Staff Expenses Control,19752,6.09
"Department for Business, Energy and Industrial Strategy",The Coal Authority,11/10/2017,Mileage Payments,Business Development,Staff Expenses Control,19934,4.5
"Department for Business, Energy and Industrial Strategy",The Coal Authority,11/10/2017,Mileage Payments,Business Development,Staff Expenses Control,19934,4.5
"Department for Business, Energy and Industrial Strategy",The Coal Authority,18/10/2017,Mileage Payments,Business Development,Staff Expenses Control,19934,4.5
"Department for Business, Energy and Industrial Strategy",The Coal Authority,18/10/2017,Mileage Payments,Business Development,Staff Expenses Control,19934,4.5
"Department for Business, Energy and Industrial Strategy",The Coal Authority,18/07/2017,Professional Subscriptions,Business Development,Government Procurement Card,20113,55
"Department for Business, Energy and Industrial Strategy",The Coal Authority,30/09/2017,Short Term Vehicle Hire,Business Development,Enterprise Rent A Car,19408,212.12
"Department for Business, Energy and Industrial Strategy",The Coal Authority,30/09/2017,Short Term Vehicle Hire,Business Development,Enterprise Rent A Car,19431,121.2
"Department for Business, Energy and Industrial Strategy",The Coal Authority,10/07/2017,Subsistence Allowances,Business Development,Government Procurement Card,20113,2.9
"Department for Business, Energy and Industrial Strategy",The Coal Authority,11/07/2017,Subsistence Allowances,Business Development,Government Procurement Card,20113,22.5
"Department for Business, Energy and Industrial Strategy",The Coal Authority,11/07/2017,Subsistence Allowances,Business Development,Government Procurement Card,20113,2.7
"Department for Business, Energy and Industrial Strategy",The Coal Authority,11/07/2017,Subsistence Allowances,Business Development,Government Procurement Card,20113,1.32
"Department for Business, Energy and Industrial Strategy",The Coal Authority,11/07/2017,Subsistence Allowances,Business Development,Government Procurement Card,20113,3.25
"Department for Business, Energy and Industrial Strategy",The Coal Authority,12/07/2017,Subsistence Allowances,Business Development,Government Procurement Card,20113,24.58
"Department for Business, Energy and Industrial Strategy",The Coal Authority,12/07/2017,Subsistence Allowances,Business Development,Government Procurement Card,20113,2.08
"Department for Business, Energy and Industrial Strategy",The Coal Authority,13/07/2017,Subsistence Allowances,Business Development,Government Procurement Card,20113,2.12
"Department for Business, Energy and Industrial Strategy",The Coal Authority,13/07/2017,Subsistence Allowances,Business Development,Government Procurement Card,20113,8
"Department for Business, Energy and Industrial Strategy",The Coal Authority,13/07/2017,Subsistence Allowances,Business Development,Government Procurement Card,20113,2.5
"Department for Business, Energy and Industrial Strategy",The Coal Authority,13/07/2017,Subsistence Allowances,Business Development,Government Procurement Card,20113,17.08
"Department for Business, Energy and Industrial Strategy",The Coal Authority,13/07/2017,Subsistence Allowances,Business Development,Government Procurement Card,20113,2.5
"Department for Business, Energy and Industrial Strategy",The Coal Authority,13/07/2017,Subsistence Allowances,Business Development,Government Procurement Card,20113,1
"Department for Business, Energy and Industrial Strategy",The Coal Authority,13/07/2017,Subsistence Allowances,Business Development,Government Procurement Card,20113,1
"Department for Business, Energy and Industrial Strategy",The Coal Authority,13/07/2017,Subsistence Allowances,Business Development,Government Procurement Card,20113,3.05
"Department for Business, Energy and Industrial Strategy",The Coal Authority,14/07/2017,Subsistence Allowances,Business Development,Government Procurement Card,20113,7.49
"Department for Business, Energy and Industrial Strategy",The Coal Authority,14/07/2017,Subsistence Allowances,Business Development,Government Procurement Card,20113,3.24
"Department for Business, Energy and Industrial Strategy",The Coal Authority,14/07/2017,Subsistence Allowances,Business Development,Government Procurement Card,20113,3.24
"Department for Business, Energy and Industrial Strategy",The Coal Authority,14/07/2017,Subsistence Allowances,Business Development,Government Procurement Card,20113,9.16
"Department for Business, Energy and Industrial Strategy",The Coal Authority,15/07/2017,Subsistence Allowances,Business Development,Government Procurement Card,20113,21.13
"Department for Business, Energy and Industrial Strategy",The Coal Authority,17/07/2017,Subsistence Allowances,Business Development,Government Procurement Card,20113,2.13
"Department for Business, Energy and Industrial Strategy",The Coal Authority,17/07/2017,Subsistence Allowances,Business Development,Government Procurement Card,20113,9.3
"Department for Business, Energy and Industrial Strategy",The Coal Authority,18/07/2017,Subsistence Allowances,Business Development,Government Procurement Card,20113,17.2
"Department for Business, Energy and Industrial Strategy",The Coal Authority,18/07/2017,Subsistence Allowances,Business Development,Government Procurement Card,20113,12
"Department for Business, Energy and Industrial Strategy",The Coal Authority,19/07/2017,Subsistence Allowances,Business Development,Government Procurement Card,20113,2.75
"Department for Business, Energy and Industrial Strategy",The Coal Authority,19/07/2017,Subsistence Allowances,Business Development,Government Procurement Card,20113,1
"Department for Business, Energy and Industrial Strategy",The Coal Authority,19/07/2017,Subsistence Allowances,Business Development,Government Procurement Card,20113,18
"Department for Business, Energy and Industrial Strategy",The Coal Authority,20/07/2017,Subsistence Allowances,Business Development,Government Procurement Card,20113,2.13
"Department for Business, Energy and Industrial Strategy",The Coal Authority,20/07/2017,Subsistence Allowances,Business Development,Government Procurement Card,20113,2.95
"Department for Business, Energy and Industrial Strategy",The Coal Authority,20/07/2017,Subsistence Allowances,Business Development,Government Procurement Card,20113,2.55
"Department for Business, Energy and Industrial Strategy",The Coal Authority,26/07/2017,Subsistence Allowances,Business Development,Government Procurement Card,20113,2.55
"Department for Business, Energy and Industrial Strategy",The Coal Authority,26/07/2017,Subsistence Allowances,Business Development,Government Procurement Card,20113,2.75
"Department for Business, Energy and Industrial Strategy",The Coal Authority,27/07/2017,Subsistence Allowances,Business Development,Government Procurement Card,20113,5.9
"Department for Business, Energy and Industrial Strategy",The Coal Authority,27/07/2017,Subsistence Allowances,Business Development,Government Procurement Card,20113,2.17
"Department for Business, Energy and Industrial Strategy",The Coal Authority,01/08/2017,Subsistence Allowances,Business Development,Government Procurement Card,20113,4.75
"Department for Business, Energy and Industrial Strategy",The Coal Authority,01/08/2017,Subsistence Allowances,Business Development,Government Procurement Card,20113,1.67
"Department for Business, Energy and Industrial Strategy",The Coal Authority,02/08/2017,Subsistence Allowances,Business Development,Government Procurement Card,20113,3.66
"Department for Business, Energy and Industrial Strategy",The Coal Authority,06/06/2017,Subsistence Allowances,Business Development,Staff Expenses Control,19533,2.12
"Department for Business, Energy and Industrial Strategy",The Coal Authority,08/06/2017,Subsistence Allowances,Business Development,Staff Expenses Control,19533,4.7
"Department for Business, Energy and Industrial Strategy",The Coal Authority,13/06/2017,Subsistence Allowances,Business Development,Staff Expenses Control,19533,2.6
"Department for Business, Energy and Industrial Strategy",The Coal Authority,15/06/2017,Subsistence Allowances,Business Development,Staff Expenses Control,19533,2.55
"Department for Business, Energy and Industrial Strategy",The Coal Authority,11/09/2017,Subsistence Allowances,Business Development,Staff Expenses Control,19533,4
"Department for Business, Energy and Industrial Strategy",The Coal Authority,12/09/2017,Subsistence Allowances,Business Development,Staff Expenses Control,19533,1.85
"Department for Business, Energy and Industrial Strategy",The Coal Authority,20/09/2017,Subsistence Allowances,Business Development,Staff Expenses Control,19137,1.75
"Department for Business, Energy and Industrial Strategy",The Coal Authority,07/10/2017,Subsistence Allowances,Business Development,Staff Expenses Control,19752,1.42
"Department for Business, Energy and Industrial Strategy",The Coal Authority,18/10/2017,Subsistence Allowances,Business Development,Staff Expenses Control,19934,1.63
"Department for Business, Energy and Industrial Strategy",The Coal Authority,21/09/2017,Training & Education,Business Development,RICS BACS,19198,895
"Department for Business, Energy and Industrial Strategy",The Coal Authority,04/10/2017,CY - Land - Additions,Commercial Products - Energy,Walker Morris,19255,12000
"Department for Business, Energy and Industrial Strategy",The Coal Authority,04/10/2017,CY - Land - Additions,Commercial Products - Energy,Walker Morris,19255,6059
"Department for Business, Energy and Industrial Strategy",The Coal Authority,06/07/2017,Incidentals,Commercial Products - Energy,Staff Expenses Control,19752,10
"Department for Business, Energy and Industrial Strategy",The Coal Authority,09/06/2017,Mileage Payments,Commercial Products - Energy,Staff Expenses Control,19752,21.08
"Department for Business, Energy and Industrial Strategy",The Coal Authority,09/06/2017,Mileage Payments,Commercial Products - Energy,Staff Expenses Control,19752,21.04
"Department for Business, Energy and Industrial Strategy",The Coal Authority,06/07/2017,Mileage Payments,Commercial Products - Energy,Staff Expenses Control,19752,14.86
"Department for Business, Energy and Industrial Strategy",The Coal Authority,06/07/2017,Mileage Payments,Commercial Products - Energy,Staff Expenses Control,19752,13.02
"Department for Business, Energy and Industrial Strategy",The Coal Authority,09/08/2017,Mileage Payments,Commercial Products - Energy,Staff Expenses Control,19752,21.07
"Department for Business, Energy and Industrial Strategy",The Coal Authority,09/08/2017,Mileage Payments,Commercial Products - Energy,Staff Expenses Control,19752,21.05
"Department for Business, Energy and Industrial Strategy",The Coal Authority,09/06/2017,Subsistence Allowances,Commercial Products - Energy,Staff Expenses Control,19752,6.75
"Department for Business, Energy and Industrial Strategy",The Coal Authority,06/07/2017,Subsistence Allowances,Commercial Products - Energy,Staff Expenses Control,19752,2.38
"Department for Business, Energy and Industrial Strategy",The Coal Authority,13/07/2017,Subsistence Allowances,Commercial Products - Energy,Staff Expenses Control,19752,3.42
"Department for Business, Energy and Industrial Strategy",The Coal Authority,09/08/2017,Subsistence Allowances,Commercial Products - Energy,Staff Expenses Control,19752,4.54
"Department for Business, Energy and Industrial Strategy",The Coal Authority,04/07/2017,Business Meetings,Commercial Products - Heat,Government Procurement Card,20113,3.42
"Department for Business, Energy and Industrial Strategy",The Coal Authority,30/10/2017,Innovation Costs,Commercial Products - Ochre,19917 Severn Trent Serv Ops Uk Ltd,20189,38.08
"Department for Business, Energy and Industrial Strategy",The Coal Authority,30/10/2017,Innovation Costs,Commercial Products - Ochre,19917 Severn Trent Serv Ops Uk Ltd,20189,50.77
"Department for Business, Energy and Industrial Strategy",The Coal Authority,26/09/2017,Incidentals,Commercial Products - Water,Staff Expenses Control,19934,9
"Department for Business, Energy and Industrial Strategy",The Coal Authority,09/10/2017,Mileage Payments,Commercial Products - Water,Staff Expenses Control,19934,9
"Department for Business, Energy and Industrial Strategy",The Coal Authority,26/09/2017,Subsistence Allowances,Commercial Products - Water,Staff Expenses Control,19934,7.95
"Department for Business, Energy and Industrial Strategy",The Coal Authority,27/09/2017,Subsistence Allowances,Commercial Products - Water,Staff Expenses Control,19934,1.66
"Department for Business, Energy and Industrial Strategy",The Coal Authority,07/09/2017,Fares - Public Transport,Communications & Brand,Staff Expenses Control,19752,34.2
"Department for Business, Energy and Industrial Strategy",The Coal Authority,30/09/2017,Fares - Rail,Communications & Brand,Redfern Travel Ltd,19746,386
"Department for Business, Energy and Industrial Strategy",The Coal Authority,30/09/2017,Hotel & Accommodation,Communications & Brand,Redfern Travel Ltd,19746,342.63
"Department for Business, Energy and Industrial Strategy",The Coal Authority,07/09/2017,Incidentals,Communications & Brand,Staff Expenses Control,19752,11.5
"Department for Business, Energy and Industrial Strategy",The Coal Authority,10/08/2017,Mileage Payments,Communications & Brand,Staff Expenses Control,19137,36
"Department for Business, Energy and Industrial Strategy",The Coal Authority,15/08/2017,Mileage Payments,Communications & Brand,Staff Expenses Control,19137,36
"Department for Business, Energy and Industrial Strategy",The Coal Authority,14/09/2017,Mileage Payments,Communications & Brand,Staff Expenses Control,19752,27.9
"Department for Business, Energy and Industrial Strategy",The Coal Authority,05/10/2017,Mileage Payments,Communications & Brand,Staff Expenses Control,19752,3.6
"Department for Business, Energy and Industrial Strategy",The Coal Authority,10/10/2017,Mileage Payments,Communications & Brand,Staff Expenses Control,19752,48.6
"Department for Business, Energy and Industrial Strategy",The Coal Authority,30/09/2017,Public Relations,Communications & Brand,Gorkana Group Ltd,19524,146.55
"Department for Business, Energy and Industrial Strategy",The Coal Authority,30/09/2017,Public Relations,Communications & Brand,Gorkana Group Ltd,19525,204.26
"Department for Business, Energy and Industrial Strategy",The Coal Authority,30/09/2017,Public Relations,Communications & Brand,Sharpe Pritchard,19724,425
"Department for Business, Energy and Industrial Strategy",The Coal Authority,01/11/2017,Software Licenses - On Premise,Communications & Brand,11256 - Neath Port Talbot,20484,-11.99
"Department for Business, Energy and Industrial Strategy",The Coal Authority,11/05/2017,Software Licenses - On Premise,Communications & Brand,Government Procurement Card,19276,11.99
"Department for Business, Energy and Industrial Strategy",The Coal Authority,01/11/2017,Software Licenses - SaaS,Communications & Brand,1574 - GPC social media tool,20484,11.99
"Department for Business, Energy and Industrial Strategy",The Coal Authority,26/05/2017,Software Licenses - SaaS,Communications & Brand,Government Procurement Card,19276,45.6
"Department for Business, Energy and Industrial Strategy",The Coal Authority,09/06/2017,Software Licenses - SaaS,Communications & Brand,Government Procurement Card,19280,11.05
"Department for Business, Energy and Industrial Strategy",The Coal Authority,08/07/2017,Software Licenses - SaaS,Communications & Brand,Government Procurement Card,20113,11.99
"Department for Business, Energy and Industrial Strategy",The Coal Authority,13/07/2017,Stationery,Communications & Brand,Government Procurement Card,20113,21.96
"Department for Business, Energy and Industrial Strategy",The Coal Authority,25/08/2017,Subsistence Allowances,Communications & Brand,Staff Expenses Control,19137,5
"Department for Business, Energy and Industrial Strategy",The Coal Authority,07/09/2017,Subsistence Allowances,Communications & Brand,Staff Expenses Control,19752,11.1
"Department for Business, Energy and Industrial Strategy",The Coal Authority,14/09/2017,Sundry Office Expenses,Communications & Brand,Staff Expenses Control,19752,23
"Department for Business, Energy and Industrial Strategy",The Coal Authority,18/09/2017,Mileage Payments,Consultancy-Developers-Developers,Staff Expenses Control,19752,29.04
"Department for Business, Energy and Industrial Strategy",The Coal Authority,18/09/2017,Mileage Payments,Consultancy-Developers-Developers,Staff Expenses Control,19752,14.74
"Department for Business, Energy and Industrial Strategy",The Coal Authority,17/10/2017,Mileage Payments,Consultancy-Developers-Local Authorities,Staff Expenses Control,20141,155.25
"Department for Business, Energy and Industrial Strategy",The Coal Authority,11/07/2017,Subsistence Allowances,Consultancy-Developers-Local Authorities,Government Procurement Card,20113,26.5
"Department for Business, Energy and Industrial Strategy",The Coal Authority,12/07/2017,Subsistence Allowances,Consultancy-Developers-Local Authorities,Government Procurement Card,20113,9.64
"Department for Business, Energy and Industrial Strategy",The Coal Authority,17/10/2017,Subsistence Allowances,Consultancy-Developers-Local Authorities,Staff Expenses Control,20141,7.8
"Department for Business, Energy and Industrial Strategy",The Coal Authority,30/09/2017,Fares - Public Transport,Customer Services,Ace Of Mansfield Ltd,19380,13.83
"Department for Business, Energy and Industrial Strategy",The Coal Authority,03/07/2017,Postage & Couriers,Customer Services,Government Procurement Card,20113,17.77
"Department for Business, Energy and Industrial Strategy",The Coal Authority,06/10/2017,Postage & Couriers,Customer Services,Tnt Uk Limited,19610,21.25
"Department for Business, Energy and Industrial Strategy",The Coal Authority,20/10/2017,Postage & Couriers,Customer Services,Tnt Uk Limited,20002,26.57
"Department for Business, Energy and Industrial Strategy",The Coal Authority,29/03/2017,Stationery,Customer Services,56455 - Imprint,20047,-121.3
"Department for Business, Energy and Industrial Strategy",The Coal Authority,30/09/2017,Stationery,Customer Services,Banner Business Solutions,19523,886.18
"Department for Business, Energy and Industrial Strategy",The Coal Authority,20/09/2017,Stationery,Customer Services,Imprint,19519,310.42
"Department for Business, Energy and Industrial Strategy",The Coal Authority,28/09/2017,Stationery,Customer Services,Imprint,19184,100.75
"Department for Business, Energy and Industrial Strategy",The Coal Authority,19/10/2017,Stationery,Customer Services,Imprint,19847,92.37
"Department for Business, Energy and Industrial Strategy",The Coal Authority,10/10/2017,Applications Consultancy,Data Solutions,Scisys Uk Ltd,19918,512.87
"Department for Business, Energy and Industrial Strategy",The Coal Authority,10/10/2017,CY - Intangible IT - Additions,Data Solutions,Scisys Uk Ltd,19918,9866.9
"Department for Business, Energy and Industrial Strategy",The Coal Authority,11/10/2017,Incidentals,Data Solutions,Staff Expenses Control,19752,12
"Department for Business, Energy and Industrial Strategy",The Coal Authority,10/10/2017,Legal - General,Data Solutions,Dla Piper Uk Llp,19667,2472.17
"Department for Business, Energy and Industrial Strategy",The Coal Authority,20/10/2017,Software Support & Maintenance - On Premise,Data Solutions,1Spatial Group Ltd,19893,1300
"Department for Business, Energy and Industrial Strategy",The Coal Authority,16/05/2017,Software Support & Maintenance - On Premise,Data Solutions,Oracle,19578,4704.24
"Department for Business, Energy and Industrial Strategy",The Coal Authority,16/05/2017,Software Support & Maintenance - On Premise,Data Solutions,Oracle,19579,2389.19
"Department for Business, Energy and Industrial Strategy",The Coal Authority,10/10/2017,Software Support & Maintenance - On Premise,Data Solutions,Scisys Uk Ltd,19918,7679.53
"Department for Business, Energy and Industrial Strategy",The Coal Authority,31/07/2017,Fares - Rail,Development - Development Management,Government Procurement Card,20113,17.8
"Department for Business, Energy and Industrial Strategy",The Coal Authority,30/09/2017,Fares - Rail,Development - Development Management,Redfern Travel Ltd,19746,208.1
"Department for Business, Energy and Industrial Strategy",The Coal Authority,05/07/2017,Incidentals,Development - Development Management,Government Procurement Card,20113,7.8
"Department for Business, Energy and Industrial Strategy",The Coal Authority,25/07/2017,Incidentals,Development - Development Management,Government Procurement Card,20113,12.5
"Department for Business, Energy and Industrial Strategy",The Coal Authority,31/07/2017,Incidentals,Development - Development Management,Government Procurement Card,20113,10.42
"Department for Business, Energy and Industrial Strategy",The Coal Authority,11/07/2017,Subsistence Allowances,Development - Development Management,Government Procurement Card,20113,3.25
"Department for Business, Energy and Industrial Strategy",The Coal Authority,11/07/2017,Subsistence Allowances,Development - Development Management,Government Procurement Card,20113,1.25
"Department for Business, Energy and Industrial Strategy",The Coal Authority,11/07/2017,Subsistence Allowances,Development - Development Management,Government Procurement Card,20113,2.7
"Department for Business, Energy and Industrial Strategy",The Coal Authority,11/07/2017,Subsistence Allowances,Development - Development Management,Government Procurement Card,20113,23
"Department for Business, Energy and Industrial Strategy",The Coal Authority,12/07/2017,Subsistence Allowances,Development - Development Management,Government Procurement Card,20113,4.25
"Department for Business, Energy and Industrial Strategy",The Coal Authority,12/07/2017,Subsistence Allowances,Development - Development Management,Government Procurement Card,20113,2.54
"Department for Business, Energy and Industrial Strategy",The Coal Authority,25/07/2017,Subsistence Allowances,Development - Development Management,Government Procurement Card,20113,3.5
"Department for Business, Energy and Industrial Strategy",The Coal Authority,25/07/2017,Subsistence Allowances,Development - Development Management,Government Procurement Card,20113,2.3
"Department for Business, Energy and Industrial Strategy",The Coal Authority,26/07/2017,Subsistence Allowances,Development - Development Management,Government Procurement Card,20113,2.75
"Department for Business, Energy and Industrial Strategy",The Coal Authority,26/07/2017,Subsistence Allowances,Development - Development Management,Government Procurement Card,20113,3.95
"Department for Business, Energy and Industrial Strategy",The Coal Authority,01/08/2017,Subsistence Allowances,Development - Development Management,Government Procurement Card,20113,2.83
"Department for Business, Energy and Industrial Strategy",The Coal Authority,27/10/2017,Closed Colliery Site Restoration,Development - Historic Property Liabilities,Crimefighter Alarms Ltd,20203,2688
"Department for Business, Energy and Industrial Strategy",The Coal Authority,22/08/2017,Consultancy - Property Management,Development - Historic Property Liabilities,J B Corrie & Co. Limited,19473,921.2
"Department for Business, Energy and Industrial Strategy",The Coal Authority,26/10/2017,Consultancy - Property Management,Development - Historic Property Liabilities,Marshall Farming Limited,20193,5293.2
"Department for Business, Energy and Industrial Strategy",The Coal Authority,30/09/2017,Consultancy - Property Management,Development - Historic Property Liabilities,Ovenden Plant Hire Limited,19687,1350.22
"Department for Business, Energy and Industrial Strategy",The Coal Authority,30/09/2017,Consultancy - Property Management,Development - Historic Property Liabilities,Ovenden Plant Hire Limited,19688,430.52
"Department for Business, Energy and Industrial Strategy",The Coal Authority,30/09/2017,Fares - Air,Development - Historic Property Liabilities,Redfern Travel Ltd,19746,1044.05
"Department for Business, Energy and Industrial Strategy",The Coal Authority,30/09/2017,Fares - Rail,Development - Historic Property Liabilities,Redfern Travel Ltd,19736,-138.5
"Department for Business, Energy and Industrial Strategy",The Coal Authority,30/09/2017,Hotel & Accommodation,Development - Historic Property Liabilities,Redfern Travel Ltd,19746,421.66
"Department for Business, Energy and Industrial Strategy",The Coal Authority,10/10/2017,Legal - General,Development - Historic Property Liabilities,Dla Piper Uk Llp,19667,1925.64
"Department for Business, Energy and Industrial Strategy",The Coal Authority,28/09/2017,Legal - Property Title Search,Development - Historic Property Liabilities,Land Registry,19648,21
"Department for Business, Energy and Industrial Strategy",The Coal Authority,29/09/2017,Legal - Property Title Search,Development - Historic Property Liabilities,Land Registry,19649,6
"Department for Business, Energy and Industrial Strategy",The Coal Authority,05/10/2017,Legal - Property Title Search,Development - Historic Property Liabilities,Land Registry,19650,15
"Department for Business, Energy and Industrial Strategy",The Coal Authority,06/10/2017,Legal - Property Title Search,Development - Historic Property Liabilities,Land Registry,19651,9
"Department for Business, Energy and Industrial Strategy",The Coal Authority,12/10/2017,Legal - Property Title Search,Development - Historic Property Liabilities,Land Registry,20184,6
"Department for Business, Energy and Industrial Strategy",The Coal Authority,18/10/2017,Legal - Property Title Search,Development - Historic Property Liabilities,Land Registry,20185,63
"Department for Business, Energy and Industrial Strategy",The Coal Authority,20/10/2017,Legal - Property Title Search,Development - Historic Property Liabilities,Land Registry,20187,3
"Department for Business, Energy and Industrial Strategy",The Coal Authority,31/10/2017,Legal - Property Title Search,Development - Historic Property Liabilities,Land Registry,20188,54
"Department for Business, Energy and Industrial Strategy",The Coal Authority,30/09/2017,Other Contractor Costs,Development - Historic Property Liabilities,Jmc Engineering Uk Ltd,19373,998.7
"Department for Business, Energy and Industrial Strategy",The Coal Authority,30/09/2017,Other Contractor Costs,Development - Historic Property Liabilities,Jmc Engineering Uk Ltd,19374,64.6
"Department for Business, Energy and Industrial Strategy",The Coal Authority,30/09/2017,Other Contractor Costs,Development - Historic Property Liabilities,Jmc Engineering Uk Ltd,19376,231.35
"Department for Business, Energy and Industrial Strategy",The Coal Authority,30/09/2017,Other Contractor Costs,Development - Historic Property Liabilities,Mercury Fire & Security Ltd,19567,3400.48
"Department for Business, Energy and Industrial Strategy",The Coal Authority,16/10/2017,Other Contractor Costs,Development - Historic Property Liabilities,MTS Cleansing Services LTD,19889,381.69
"Department for Business, Energy and Industrial Strategy",The Coal Authority,30/09/2017,Other Contractor Costs,Development - Historic Property Liabilities,Ovenden Plant Hire Limited,19470,30.86
"Department for Business, Energy and Industrial Strategy",The Coal Authority,05/10/2017,Property Rates Payable,Development - Historic Property Liabilities,British Gas Business,19597,39.92
"Department for Business, Energy and Industrial Strategy",The Coal Authority,11/10/2017,Property Rates Payable,Development - Historic Property Liabilities,British Gas Business,20109,9.74
"Department for Business, Energy and Industrial Strategy",The Coal Authority,11/10/2017,Property Rates Payable,Development - Historic Property Liabilities,British Gas Business,20109,195.81
"Department for Business, Energy and Industrial Strategy",The Coal Authority,27/07/2017,Property Site Maintenance,Development - Historic Property Liabilities,Cooke & Arkwright,19842,517.84
"Department for Business, Energy and Industrial Strategy",The Coal Authority,30/09/2017,Fares - Rail,Development - Legal,Redfern Travel Ltd,19746,205.9
"Department for Business, Energy and Industrial Strategy",The Coal Authority,30/10/2017,Professional Subscriptions,Development - Legal,CILEx,20168,364
"Department for Business, Energy and Industrial Strategy",The Coal Authority,30/10/2017,Professional Subscriptions,Development - Legal,CILEx,20169,364
"Department for Business, Energy and Industrial Strategy",The Coal Authority,05/09/2017,Training & Education,Development - Legal,Central Law Training,19564,230
"Department for Business, Energy and Industrial Strategy",The Coal Authority,05/10/2017,Training & Education,Development - Legal,Central Law Training,19565,375
"Department for Business, Energy and Industrial Strategy",The Coal Authority,30/09/2017,Fares - Rail,Development - Licensing,Redfern Travel Ltd,19746,209
"Department for Business, Energy and Industrial Strategy",The Coal Authority,01/05/2016,Software Licenses - On Premise,Development - Licensing,Open Projects Limited,19328,1623.5
"Department for Business, Energy and Industrial Strategy",The Coal Authority,01/08/2016,Software Licenses - On Premise,Development - Licensing,Open Projects Limited,19327,1623.5
"Department for Business, Energy and Industrial Strategy",The Coal Authority,12/10/2017,Subsistence Allowances,Development - Licensing,Staff Expenses Control,19752,25
"Department for Business, Energy and Industrial Strategy",The Coal Authority,13/10/2017,Subsistence Allowances,Development - Licensing,Staff Expenses Control,19752,14.1
"Department for Business, Energy and Industrial Strategy",The Coal Authority,20/10/2017,eCommerce Commission Charges,Development � Permissions,Worldpay Limited,19896,29.3
"Department for Business, Energy and Industrial Strategy",The Coal Authority,22/08/2017,Fares - Rail,Development � Permissions,Staff Expenses Control,19137,11
"Department for Business, Energy and Industrial Strategy",The Coal Authority,07/09/2017,Fares - Rail,Development � Permissions,Staff Expenses Control,19137,16.5
"Department for Business, Energy and Industrial Strategy",The Coal Authority,22/08/2017,Incidentals,Development � Permissions,Staff Expenses Control,19137,6
"Department for Business, Energy and Industrial Strategy",The Coal Authority,07/09/2017,Incidentals,Development � Permissions,Staff Expenses Control,19137,4
"Department for Business, Energy and Industrial Strategy",The Coal Authority,12/10/2017,Incidentals,Development � Permissions,Staff Expenses Control,20141,1.1
"Department for Business, Energy and Industrial Strategy",The Coal Authority,06/04/2017,Mileage Payments,Development � Permissions,Staff Expenses Control,19137,20.25
"Department for Business, Energy and Industrial Strategy",The Coal Authority,06/04/2017,Mileage Payments,Development � Permissions,Staff Expenses Control,19137,16.65
"Department for Business, Energy and Industrial Strategy",The Coal Authority,09/04/2017,Mileage Payments,Development � Permissions,Staff Expenses Control,19137,2.25
"Department for Business, Energy and Industrial Strategy",The Coal Authority,09/04/2017,Mileage Payments,Development � Permissions,Staff Expenses Control,19137,2.25
"Department for Business, Energy and Industrial Strategy",The Coal Authority,03/07/2017,Mileage Payments,Development � Permissions,Staff Expenses Control,19137,2.3
"Department for Business, Energy and Industrial Strategy",The Coal Authority,03/07/2017,Mileage Payments,Development � Permissions,Staff Expenses Control,19137,9.37
"Department for Business, Energy and Industrial Strategy",The Coal Authority,05/07/2017,Mileage Payments,Development � Permissions,Staff Expenses Control,19137,5.04
"Department for Business, Energy and Industrial Strategy",The Coal Authority,05/07/2017,Mileage Payments,Development � Permissions,Staff Expenses Control,19137,6.6
"Department for Business, Energy and Industrial Strategy",The Coal Authority,22/08/2017,Mileage Payments,Development � Permissions,Staff Expenses Control,19137,6.3
"Department for Business, Energy and Industrial Strategy",The Coal Authority,22/08/2017,Mileage Payments,Development � Permissions,Staff Expenses Control,19137,6.3
"Department for Business, Energy and Industrial Strategy",The Coal Authority,06/09/2017,Mileage Payments,Development � Permissions,Staff Expenses Control,19137,15.85
"Department for Business, Energy and Industrial Strategy",The Coal Authority,06/09/2017,Mileage Payments,Development � Permissions,Staff Expenses Control,19137,14.64
"Department for Business, Energy and Industrial Strategy",The Coal Authority,06/09/2017,Mileage Payments,Development � Permissions,Staff Expenses Control,19137,5.78
"Department for Business, Energy and Industrial Strategy",The Coal Authority,06/09/2017,Mileage Payments,Development � Permissions,Staff Expenses Control,19137,4.49
"Department for Business, Energy and Industrial Strategy",The Coal Authority,07/09/2017,Mileage Payments,Development � Permissions,Staff Expenses Control,19137,2.08
"Department for Business, Energy and Industrial Strategy",The Coal Authority,07/09/2017,Mileage Payments,Development � Permissions,Staff Expenses Control,19137,2.15
"Department for Business, Energy and Industrial Strategy",The Coal Authority,12/09/2017,Mileage Payments,Development � Permissions,Staff Expenses Control,19137,4.95
"Department for Business, Energy and Industrial Strategy",The Coal Authority,12/09/2017,Mileage Payments,Development � Permissions,Staff Expenses Control,19137,14.1
"Department for Business, Energy and Industrial Strategy",The Coal Authority,05/09/2017,Subsistence Allowances,Development � Permissions,Staff Expenses Control,19752,5.2
"Department for Business, Energy and Industrial Strategy",The Coal Authority,05/09/2017,Subsistence Allowances,Development � Permissions,Staff Expenses Control,19752,3.04
"Department for Business, Energy and Industrial Strategy",The Coal Authority,06/09/2017,Subsistence Allowances,Development � Permissions,Staff Expenses Control,19752,5.19
"Department for Business, Energy and Industrial Strategy",The Coal Authority,05/10/2017,Subsistence Allowances,Development � Permissions,Staff Expenses Control,19934,2.45
"Department for Business, Energy and Industrial Strategy",The Coal Authority,05/10/2017,Subsistence Allowances,Development � Permissions,Staff Expenses Control,20141,3.5
"Department for Business, Energy and Industrial Strategy",The Coal Authority,12/10/2017,Subsistence Allowances,Development � Permissions,Staff Expenses Control,19752,25
"Department for Business, Energy and Industrial Strategy",The Coal Authority,29/09/2017,Temporary Contractors,Development � Permissions,Key Personnel Solutions Ltd,19369,446.63
"Department for Business, Energy and Industrial Strategy",The Coal Authority,13/10/2017,Temporary Contractors,Development � Permissions,Key Personnel Solutions Ltd,19789,446.63
"Department for Business, Energy and Industrial Strategy",The Coal Authority,20/10/2017,Temporary Contractors,Development � Permissions,Key Personnel Solutions Ltd,19986,446.62
"Department for Business, Energy and Industrial Strategy",The Coal Authority,27/10/2017,Temporary Contractors,Development � Permissions,Key Personnel Solutions Ltd,20197,446.63
"Department for Business, Energy and Industrial Strategy",The Coal Authority,03/07/2017,Training & Education,Development � Permissions,Government Procurement Card,20113,-45
"Department for Business, Energy and Industrial Strategy",The Coal Authority,06/07/2017,Training & Education,Development � Permissions,Government Procurement Card,20113,19.5
"Department for Business, Energy and Industrial Strategy",The Coal Authority,06/07/2017,Training & Education,Development � Permissions,Government Procurement Card,20113,19.5
"Department for Business, Energy and Industrial Strategy",The Coal Authority,02/08/2017,Training & Education,Development � Permissions,Government Procurement Card,20113,25
"Department for Business, Energy and Industrial Strategy",The Coal Authority,02/08/2017,Training & Education,Development � Permissions,Government Procurement Card,20113,25
"Department for Business, Energy and Industrial Strategy",The Coal Authority,10/10/2017,Applications Consultancy,Development - Planning & Local Authority Liaison,Scisys Uk Ltd,19918,128.22
"Department for Business, Energy and Industrial Strategy",The Coal Authority,10/10/2017,CY - Intangible IT - Additions,Development - Planning & Local Authority Liaison,Scisys Uk Ltd,19918,5550.13
"Department for Business, Energy and Industrial Strategy",The Coal Authority,30/09/2017,Fares - Rail,Development - Planning & Local Authority Liaison,Redfern Travel Ltd,19746,41
"Department for Business, Energy and Industrial Strategy",The Coal Authority,30/09/2017,Hotel & Accommodation,Development - Planning & Local Authority Liaison,Redfern Travel Ltd,19746,83.5
"Department for Business, Energy and Industrial Strategy",The Coal Authority,20/09/2017,Incidentals,Development - Planning & Local Authority Liaison,Staff Expenses Control,19137,54.99
"Department for Business, Energy and Industrial Strategy",The Coal Authority,21/09/2017,Incidentals,Development - Planning & Local Authority Liaison,Staff Expenses Control,19533,3
"Department for Business, Energy and Industrial Strategy",The Coal Authority,20/09/2017,Mileage Payments,Development - Planning & Local Authority Liaison,Staff Expenses Control,19137,27.9
"Department for Business, Energy and Industrial Strategy",The Coal Authority,21/09/2017,Mileage Payments,Development - Planning & Local Authority Liaison,Staff Expenses Control,19533,6.09
"Department for Business, Energy and Industrial Strategy",The Coal Authority,21/09/2017,Mileage Payments,Development - Planning & Local Authority Liaison,Staff Expenses Control,19533,6.06
"Department for Business, Energy and Industrial Strategy",The Coal Authority,16/05/2017,Software Support & Maintenance - On Premise,Development - Planning & Local Authority Liaison,Oracle,19578,1176.06
"Department for Business, Energy and Industrial Strategy",The Coal Authority,16/05/2017,Software Support & Maintenance - On Premise,Development - Planning & Local Authority Liaison,Oracle,19579,597.3
"Department for Business, Energy and Industrial Strategy",The Coal Authority,10/10/2017,Software Support & Maintenance - On Premise,Development - Planning & Local Authority Liaison,Scisys Uk Ltd,19918,1919.88
"Department for Business, Energy and Industrial Strategy",The Coal Authority,20/09/2017,Subsistence Allowances,Development - Planning & Local Authority Liaison,Staff Expenses Control,19137,22.85
"Department for Business, Energy and Industrial Strategy",The Coal Authority,20/09/2017,Subsistence Allowances,Development - Planning & Local Authority Liaison,Staff Expenses Control,19137,7.42
"Department for Business, Energy and Industrial Strategy",The Coal Authority,21/09/2017,Subsistence Allowances,Development - Planning & Local Authority Liaison,Staff Expenses Control,19137,6.7
"Department for Business, Energy and Industrial Strategy",The Coal Authority,10/10/2017,Applications Consultancy,Development - Property Management,Scisys Uk Ltd,19918,128.22
"Department for Business, Energy and Industrial Strategy",The Coal Authority,26/10/2017,Consultancy - Property Management,Development - Property Management,Marshall Farming Limited,20193,10520.2
"Department for Business, Energy and Industrial Strategy",The Coal Authority,10/10/2017,CY - Intangible IT - Additions,Development - Property Management,Scisys Uk Ltd,19918,3083.4
"Department for Business, Energy and Industrial Strategy",The Coal Authority,30/09/2017,Fares - Rail,Development - Property Management,Redfern Travel Ltd,19746,359.4
"Department for Business, Energy and Industrial Strategy",The Coal Authority,25/07/2017,Incidentals,Development - Property Management,Government Procurement Card,20113,11.5
"Department for Business, Energy and Industrial Strategy",The Coal Authority,06/10/2017,Legal - General,Development - Property Management,Anderson Strathern,19607,594
"Department for Business, Energy and Industrial Strategy",The Coal Authority,28/09/2017,Property Site Maintenance,Development - Property Management,Asgs Security Services Ltd,19157,260
"Department for Business, Energy and Industrial Strategy",The Coal Authority,24/10/2017,Property Site Maintenance,Development - Property Management,Nal Plant Limited,20156,1754.87
"Department for Business, Energy and Industrial Strategy",The Coal Authority,30/09/2017,Short Term Vehicle Hire,Development - Property Management,Enterprise Rent A Car,19458,51.11
"Department for Business, Energy and Industrial Strategy",The Coal Authority,16/05/2017,Software Support & Maintenance - On Premise,Development - Property Management,Oracle,19579,597.3
"Department for Business, Energy and Industrial Strategy",The Coal Authority,16/05/2017,Software Support & Maintenance - On Premise,Development - Property Management,Oracle,19578,1176.05
"Department for Business, Energy and Industrial Strategy",The Coal Authority,10/10/2017,Software Support & Maintenance - On Premise,Development - Property Management,Scisys Uk Ltd,19918,1919.88
"Department for Business, Energy and Industrial Strategy",The Coal Authority,26/07/2017,Stationery,Development - Property Management,Government Procurement Card,20113,36.26
"Department for Business, Energy and Industrial Strategy",The Coal Authority,25/07/2017,Subsistence Allowances,Development - Property Management,Government Procurement Card,20113,3.86
"Department for Business, Energy and Industrial Strategy",The Coal Authority,25/07/2017,Subsistence Allowances,Development - Property Management,Government Procurement Card,20113,5.83
"Department for Business, Energy and Industrial Strategy",The Coal Authority,27/09/2017,Subsistence Allowances,Development - Property Management,Staff Expenses Control,19137,22.5
"Department for Business, Energy and Industrial Strategy",The Coal Authority,27/09/2017,Subsistence Allowances,Development - Property Management,Staff Expenses Control,19137,22.5
"Department for Business, Energy and Industrial Strategy",The Coal Authority,17/07/2017,Training & Education,Development - Property Management,Government Procurement Card,20113,40
"Department for Business, Energy and Industrial Strategy",The Coal Authority,24/10/2017,CY - Subsidence Pumping - Additions,Environment - Contract Management,C Goldthorpe & Sons,19943,679
"Department for Business, Energy and Industrial Strategy",The Coal Authority,10/10/2017,CY - Subsidence Pumping - Additions,Environment - Contract Management,Danvm Drainage Commissioners,19634,1596
"Department for Business, Energy and Industrial Strategy",The Coal Authority,02/10/2017,CY - Subsidence Pumping - Additions,Environment - Contract Management,Hlw Keeble Hawson LLP,19136,868
"Department for Business, Energy and Industrial Strategy",The Coal Authority,02/10/2017,CY - Subsidence Pumping - Additions,Environment - Contract Management,John H Pickup & Co,19144,240
"Department for Business, Energy and Industrial Strategy",The Coal Authority,09/10/2017,CY - Subsidence Pumping - Additions,Environment - Contract Management,Kemada Limited,19764,10031.78
"Department for Business, Energy and Industrial Strategy",The Coal Authority,02/10/2017,CY - Subsidence Pumping - Additions,Environment - Contract Management,Compensation Payment,19138,1352.39
"Department for Business, Energy and Industrial Strategy",The Coal Authority,24/10/2017,CY - Subsidence Pumping - Additions,Environment - Contract Management,Nal Plant Limited,20151,291.69
"Department for Business, Energy and Industrial Strategy",The Coal Authority,30/09/2017,Fares - Rail,Environment - Contract Management,Redfern Travel Ltd,19746,18
"Department for Business, Energy and Industrial Strategy",The Coal Authority,06/07/2017,Fuel (Vehicle),Environment - Contract Management,Government Procurement Card,20113,4.17
"Department for Business, Energy and Industrial Strategy",The Coal Authority,06/07/2017,Fuel (Vehicle),Environment - Contract Management,Government Procurement Card,20113,4.18
"Department for Business, Energy and Industrial Strategy",The Coal Authority,25/09/2017,Fuel (Vehicle),Environment - Contract Management,Staff Expenses Control,19752,46.35
"Department for Business, Energy and Industrial Strategy",The Coal Authority,27/09/2017,Fuel (Vehicle),Environment - Contract Management,Staff Expenses Control,19752,64.11
"Department for Business, Energy and Industrial Strategy",The Coal Authority,30/09/2017,Hotel & Accommodation,Environment - Contract Management,Redfern Travel Ltd,19746,346.5
"Department for Business, Energy and Industrial Strategy",The Coal Authority,30/10/2017,Minewater Chemicals - Operational Sites,Environment - Contract Management,19917 Severn Trent Serv Ops Uk Ltd,20189,88.04
"Department for Business, Energy and Industrial Strategy",The Coal Authority,30/10/2017,Minewater Chemicals - Operational Sites,Environment - Contract Management,19917 Severn Trent Serv Ops Uk Ltd,20189,36.37
"Department for Business, Energy and Industrial Strategy",The Coal Authority,30/10/2017,Minewater Chemicals - Operational Sites,Environment - Contract Management,19917 Severn Trent Serv Ops Uk Ltd,20189,8681.98
"Department for Business, Energy and Industrial Strategy",The Coal Authority,30/10/2017,Minewater Chemicals - Operational Sites,Environment - Contract Management,19917 Severn Trent Serv Ops Uk Ltd,20189,762.08
"Department for Business, Energy and Industrial Strategy",The Coal Authority,30/10/2017,Minewater Chemicals - Operational Sites,Environment - Contract Management,19917 Severn Trent Serv Ops Uk Ltd,20189,26260.45
"Department for Business, Energy and Industrial Strategy",The Coal Authority,30/10/2017,Minewater Chemicals - Operational Sites,Environment - Contract Management,19917 Severn Trent Serv Ops Uk Ltd,20189,5104.93
"Department for Business, Energy and Industrial Strategy",The Coal Authority,30/10/2017,Minewater Chemicals - Operational Sites,Environment - Contract Management,19917 Severn Trent Serv Ops Uk Ltd,20189,-1613.07
"Department for Business, Energy and Industrial Strategy",The Coal Authority,30/10/2017,Minewater Chemicals - Operational Sites,Environment - Contract Management,19917 Severn Trent Serv Ops Uk Ltd,20189,5216.81
"Department for Business, Energy and Industrial Strategy",The Coal Authority,30/10/2017,Minewater Chemicals - Operational Sites,Environment - Contract Management,19917 Severn Trent Serv Ops Uk Ltd,20189,4102.88
"Department for Business, Energy and Industrial Strategy",The Coal Authority,30/10/2017,Minewater Chemicals - Operational Sites,Environment - Contract Management,19917 Severn Trent Serv Ops Uk Ltd,20189,890.06
"Department for Business, Energy and Industrial Strategy",The Coal Authority,30/10/2017,Minewater Contractor Add. Task Order - Ops Site,Environment - Contract Management,19917 Severn Trent Serv Ops Uk Ltd,20189,22591
"Department for Business, Energy and Industrial Strategy",The Coal Authority,30/10/2017,Minewater Contractor Add. Task Order - Ops Site,Environment - Contract Management,19917 Severn Trent Serv Ops Uk Ltd,20189,58286.37
"Department for Business, Energy and Industrial Strategy",The Coal Authority,30/10/2017,Minewater Contractor Add. Task Order - Ops Site,Environment - Contract Management,19917 Severn Trent Serv Ops Uk Ltd,20189,1362.12
"Department for Business, Energy and Industrial Strategy",The Coal Authority,30/10/2017,Minewater Contractor Add. Task Order - Ops Site,Environment - Contract Management,19917 Severn Trent Serv Ops Uk Ltd,20189,744.23
"Department for Business, Energy and Industrial Strategy",The Coal Authority,30/10/2017,Minewater Contractor Add. Task Order - Ops Site,Environment - Contract Management,19917 Severn Trent Serv Ops Uk Ltd,20189,203.58
"Department for Business, Energy and Industrial Strategy",The Coal Authority,30/10/2017,Minewater Contractor Add. Task Order - Ops Site,Environment - Contract Management,19917 Severn Trent Serv Ops Uk Ltd,20189,592.27
"Department for Business, Energy and Industrial Strategy",The Coal Authority,30/10/2017,Minewater Contractor Add. Task Order - Ops Site,Environment - Contract Management,19917 Severn Trent Serv Ops Uk Ltd,20189,1595.1
"Department for Business, Energy and Industrial Strategy",The Coal Authority,30/10/2017,Minewater Contractor Add. Task Order - Ops Site,Environment - Contract Management,19917 Severn Trent Serv Ops Uk Ltd,20189,309.29
"Department for Business, Energy and Industrial Strategy",The Coal Authority,30/10/2017,Minewater Contractor Add. Task Order - Ops Site,Environment - Contract Management,19917 Severn Trent Serv Ops Uk Ltd,20189,57.8
"Department for Business, Energy and Industrial Strategy",The Coal Authority,30/10/2017,Minewater Contractor Add. Task Order - Ops Site,Environment - Contract Management,19917 Severn Trent Serv Ops Uk Ltd,20189,258.34
"Department for Business, Energy and Industrial Strategy",The Coal Authority,30/10/2017,Minewater Contractor Add. Task Order - Ops Site,Environment - Contract Management,19917 Severn Trent Serv Ops Uk Ltd,20189,61.15
"Department for Business, Energy and Industrial Strategy",The Coal Authority,30/10/2017,Minewater Contractor Add. Task Order - Ops Site,Environment - Contract Management,19917 Severn Trent Serv Ops Uk Ltd,20189,495.84
"Department for Business, Energy and Industrial Strategy",The Coal Authority,30/10/2017,Minewater Contractor Add. Task Order - Ops Site,Environment - Contract Management,19917 Severn Trent Serv Ops Uk Ltd,20189,427.17
"Department for Business, Energy and Industrial Strategy",The Coal Authority,30/10/2017,Minewater Contractor Add. Task Order - Ops Site,Environment - Contract Management,19917 Severn Trent Serv Ops Uk Ltd,20189,1494.57
"Department for Business, Energy and Industrial Strategy",The Coal Authority,30/10/2017,Minewater Contractor Add. Task Order - Ops Site,Environment - Contract Management,19917 Severn Trent Serv Ops Uk Ltd,20189,607.28
"Department for Business, Energy and Industrial Strategy",The Coal Authority,30/10/2017,Minewater Contractor Add. Task Order - Ops Site,Environment - Contract Management,19917 Severn Trent Serv Ops Uk Ltd,20189,-1814.59
"Department for Business, Energy and Industrial Strategy",The Coal Authority,30/10/2017,Minewater Contractor Add. Task Order - Ops Site,Environment - Contract Management,19917 Severn Trent Serv Ops Uk Ltd,20189,101.91
"Department for Business, Energy and Industrial Strategy",The Coal Authority,30/10/2017,Minewater Contractor Add. Task Order - Ops Site,Environment - Contract Management,19917 Severn Trent Serv Ops Uk Ltd,20189,1758.76
"Department for Business, Energy and Industrial Strategy",The Coal Authority,30/10/2017,Minewater Contractor Add. Task Order - Ops Site,Environment - Contract Management,19917 Severn Trent Serv Ops Uk Ltd,20189,115.13
"Department for Business, Energy and Industrial Strategy",The Coal Authority,30/10/2017,Minewater Contractor Add. Task Order - Ops Site,Environment - Contract Management,19917 Severn Trent Serv Ops Uk Ltd,20189,423.34
"Department for Business, Energy and Industrial Strategy",The Coal Authority,30/10/2017,Minewater Contractor Add. Task Order - Ops Site,Environment - Contract Management,19917 Severn Trent Serv Ops Uk Ltd,20189,3093.96
"Department for Business, Energy and Industrial Strategy",The Coal Authority,30/10/2017,Minewater Contractor Add. Task Order - Ops Site,Environment - Contract Management,19917 Severn Trent Serv Ops Uk Ltd,20189,746.53
"Department for Business, Energy and Industrial Strategy",The Coal Authority,30/10/2017,Minewater Contractor Add. Task Order - Ops Site,Environment - Contract Management,19917 Severn Trent Serv Ops Uk Ltd,20189,890.09
"Department for Business, Energy and Industrial Strategy",The Coal Authority,30/10/2017,Minewater Contractor Add. Task Order - Ops Site,Environment - Contract Management,19917 Severn Trent Serv Ops Uk Ltd,20189,231.43
"Department for Business, Energy and Industrial Strategy",The Coal Authority,30/10/2017,Minewater Contractor Add. Task Order - Ops Site,Environment - Contract Management,19917 Severn Trent Serv Ops Uk Ltd,20189,1791.66
"Department for Business, Energy and Industrial Strategy",The Coal Authority,30/10/2017,Minewater Contractor Add. Task Order - Ops Site,Environment - Contract Management,19917 Severn Trent Serv Ops Uk Ltd,20189,682
"Department for Business, Energy and Industrial Strategy",The Coal Authority,30/10/2017,Minewater Contractor Add. Task Order - Ops Site,Environment - Contract Management,19917 Severn Trent Serv Ops Uk Ltd,20189,-3530.12
"Department for Business, Energy and Industrial Strategy",The Coal Authority,30/10/2017,Minewater Contractor Add. Task Order - Ops Site,Environment - Contract Management,19917 Severn Trent Serv Ops Uk Ltd,20189,58.32
"Department for Business, Energy and Industrial Strategy",The Coal Authority,30/10/2017,Minewater Contractor Add. Task Order - Ops Site,Environment - Contract Management,19917 Severn Trent Serv Ops Uk Ltd,20189,274.54
"Department for Business, Energy and Industrial Strategy",The Coal Authority,30/10/2017,Minewater Contractor Add. Task Order - Ops Site,Environment - Contract Management,19917 Severn Trent Serv Ops Uk Ltd,20189,95.16
"Department for Business, Energy and Industrial Strategy",The Coal Authority,30/10/2017,Minewater Contractor Add. Task Order - Ops Site,Environment - Contract Management,19917 Severn Trent Serv Ops Uk Ltd,20189,-1659.58
"Department for Business, Energy and Industrial Strategy",The Coal Authority,30/10/2017,Minewater Contractor Add. Task Order - Ops Site,Environment - Contract Management,19917 Severn Trent Serv Ops Uk Ltd,20189,523.84
"Department for Business, Energy and Industrial Strategy",The Coal Authority,30/10/2017,Minewater Contractor Add. Task Order - Ops Site,Environment - Contract Management,19917 Severn Trent Serv Ops Uk Ltd,20189,34.37
"Department for Business, Energy and Industrial Strategy",The Coal Authority,30/10/2017,Minewater Contractor Add. Task Order - Ops Site,Environment - Contract Management,19917 Severn Trent Serv Ops Uk Ltd,20189,187.85
"Department for Business, Energy and Industrial Strategy",The Coal Authority,30/10/2017,Minewater Contractor Add. Task Order - Ops Site,Environment - Contract Management,19917 Severn Trent Serv Ops Uk Ltd,20189,6.98
"Department for Business, Energy and Industrial Strategy",The Coal Authority,30/10/2017,Minewater Contractor Add. Task Order - Ops Site,Environment - Contract Management,19917 Severn Trent Serv Ops Uk Ltd,20189,298.93
"Department for Business, Energy and Industrial Strategy",The Coal Authority,30/10/2017,Minewater Contractor Add. Task Order - Ops Site,Environment - Contract Management,19917 Severn Trent Serv Ops Uk Ltd,20189,60.28
"Department for Business, Energy and Industrial Strategy",The Coal Authority,30/10/2017,Minewater Contractor Add. Task Order - Ops Site,Environment - Contract Management,19917 Severn Trent Serv Ops Uk Ltd,20189,327.32
"Department for Business, Energy and Industrial Strategy",The Coal Authority,30/10/2017,Minewater Contractor Add. Task Order - Ops Site,Environment - Contract Management,19917 Severn Trent Serv Ops Uk Ltd,20189,54.8
"Department for Business, Energy and Industrial Strategy",The Coal Authority,30/10/2017,Minewater Contractor Add. Task Order - Ops Site,Environment - Contract Management,19917 Severn Trent Serv Ops Uk Ltd,20189,27.83
"Department for Business, Energy and Industrial Strategy",The Coal Authority,30/10/2017,Minewater Contractor Add. Task Order - Ops Site,Environment - Contract Management,19917 Severn Trent Serv Ops Uk Ltd,20189,20.93
"Department for Business, Energy and Industrial Strategy",The Coal Authority,30/10/2017,Minewater Contractor Add. Task Order - Ops Site,Environment - Contract Management,19917 Severn Trent Serv Ops Uk Ltd,20189,37.84
"Department for Business, Energy and Industrial Strategy",The Coal Authority,30/10/2017,Minewater Contractor Add. Task Order - Ops Site,Environment - Contract Management,19917 Severn Trent Serv Ops Uk Ltd,20189,23.65
"Department for Business, Energy and Industrial Strategy",The Coal Authority,30/10/2017,Minewater Contractor Add. Task Order - Ops Site,Environment - Contract Management,19917 Severn Trent Serv Ops Uk Ltd,20189,259.05
"Department for Business, Energy and Industrial Strategy",The Coal Authority,30/10/2017,Minewater Contractor Add. Task Order - Ops Site,Environment - Contract Management,19917 Severn Trent Serv Ops Uk Ltd,20189,-9209.74
"Department for Business, Energy and Industrial Strategy",The Coal Authority,30/10/2017,Minewater Contractor Add. Task Order - Ops Site,Environment - Contract Management,19917 Severn Trent Serv Ops Uk Ltd,20189,3299.81
"Department for Business, Energy and Industrial Strategy",The Coal Authority,30/10/2017,Minewater Contractor Add. Task Order - Ops Site,Environment - Contract Management,19917 Severn Trent Serv Ops Uk Ltd,20189,444.08
"Department for Business, Energy and Industrial Strategy",The Coal Authority,30/10/2017,Minewater Contractor Add. Task Order - Ops Site,Environment - Contract Management,19917 Severn Trent Serv Ops Uk Ltd,20189,2065.84
"Department for Business, Energy and Industrial Strategy",The Coal Authority,30/10/2017,Minewater Contractor Maint. Visits - Ops Site,Environment - Contract Management,19917 Severn Trent Serv Ops Uk Ltd,20189,-98.46
"Department for Business, Energy and Industrial Strategy",The Coal Authority,30/10/2017,Minewater Contractor Maint. Visits - Ops Site,Environment - Contract Management,19917 Severn Trent Serv Ops Uk Ltd,20189,50.77
"Department for Business, Energy and Industrial Strategy",The Coal Authority,30/10/2017,Minewater Contractor Maint. Visits - Ops Site,Environment - Contract Management,19917 Severn Trent Serv Ops Uk Ltd,20189,104.19
"Department for Business, Energy and Industrial Strategy",The Coal Authority,30/10/2017,Minewater Contractor Maint. Visits - Ops Site,Environment - Contract Management,19917 Severn Trent Serv Ops Uk Ltd,20189,-14050
"Department for Business, Energy and Industrial Strategy",The Coal Authority,30/10/2017,Minewater Contractor Maint. Visits - Ops Site,Environment - Contract Management,19917 Severn Trent Serv Ops Uk Ltd,20189,200.69
"Department for Business, Energy and Industrial Strategy",The Coal Authority,30/10/2017,Minewater Contractor Maint. Visits - Ops Site,Environment - Contract Management,19917 Severn Trent Serv Ops Uk Ltd,20189,315.94
"Department for Business, Energy and Industrial Strategy",The Coal Authority,30/10/2017,Minewater Contractor Maint. Visits - Ops Site,Environment - Contract Management,19917 Severn Trent Serv Ops Uk Ltd,20189,66.5
"Department for Business, Energy and Industrial Strategy",The Coal Authority,30/10/2017,Minewater Contractor Maint. Visits - Ops Site,Environment - Contract Management,19917 Severn Trent Serv Ops Uk Ltd,20189,6201.75
"Department for Business, Energy and Industrial Strategy",The Coal Authority,30/10/2017,Minewater Contractor Maint. Visits - Ops Site,Environment - Contract Management,19917 Severn Trent Serv Ops Uk Ltd,20189,203.58
"Department for Business, Energy and Industrial Strategy",The Coal Authority,30/10/2017,Minewater Contractor Maint. Visits - Ops Site,Environment - Contract Management,19917 Severn Trent Serv Ops Uk Ltd,20189,448.4
"Department for Business, Energy and Industrial Strategy",The Coal Authority,30/10/2017,Minewater Contractor Maint. Visits - Ops Site,Environment - Contract Management,19917 Severn Trent Serv Ops Uk Ltd,20189,241.55
"Department for Business, Energy and Industrial Strategy",The Coal Authority,30/10/2017,Minewater Contractor Maint. Visits - Ops Site,Environment - Contract Management,19917 Severn Trent Serv Ops Uk Ltd,20189,42.3
"Department for Business, Energy and Industrial Strategy",The Coal Authority,30/10/2017,Minewater Contractor Maint. Visits - Ops Site,Environment - Contract Management,19917 Severn Trent Serv Ops Uk Ltd,20189,559.08
"Department for Business, Energy and Industrial Strategy",The Coal Authority,30/10/2017,Minewater Contractor Maint. Visits - Ops Site,Environment - Contract Management,19917 Severn Trent Serv Ops Uk Ltd,20189,-1302.05
"Department for Business, Energy and Industrial Strategy",The Coal Authority,30/10/2017,Minewater Contractor Maint. Visits - Ops Site,Environment - Contract Management,19917 Severn Trent Serv Ops Uk Ltd,20189,575.79
"Department for Business, Energy and Industrial Strategy",The Coal Authority,30/10/2017,Minewater Contractor Maint. Visits - Ops Site,Environment - Contract Management,19917 Severn Trent Serv Ops Uk Ltd,20189,83.35
"Department for Business, Energy and Industrial Strategy",The Coal Authority,30/10/2017,Minewater Contractor Maint. Visits - Ops Site,Environment - Contract Management,19917 Severn Trent Serv Ops Uk Ltd,20189,74.77
"Department for Business, Energy and Industrial Strategy",The Coal Authority,30/10/2017,Minewater Contractor Maint. Visits - Ops Site,Environment - Contract Management,19917 Severn Trent Serv Ops Uk Ltd,20189,770.31
"Department for Business, Energy and Industrial Strategy",The Coal Authority,30/10/2017,Minewater Contractor Maint. Visits - Ops Site,Environment - Contract Management,19917 Severn Trent Serv Ops Uk Ltd,20189,45.33
"Department for Business, Energy and Industrial Strategy",The Coal Authority,30/10/2017,Minewater Contractor Maint. Visits - Ops Site,Environment - Contract Management,19917 Severn Trent Serv Ops Uk Ltd,20189,172.23
"Department for Business, Energy and Industrial Strategy",The Coal Authority,30/10/2017,Minewater Contractor Maint. Visits - Ops Site,Environment - Contract Management,19917 Severn Trent Serv Ops Uk Ltd,20189,120.56
"Department for Business, Energy and Industrial Strategy",The Coal Authority,30/10/2017,Minewater Contractor Maint. Visits - Ops Site,Environment - Contract Management,19917 Severn Trent Serv Ops Uk Ltd,20189,6940.17
"Department for Business, Energy and Industrial Strategy",The Coal Authority,30/10/2017,Minewater Contractor Maint. Visits - Ops Site,Environment - Contract Management,19917 Severn Trent Serv Ops Uk Ltd,20189,835.65
"Department for Business, Energy and Industrial Strategy",The Coal Authority,30/10/2017,Minewater Contractor Maint. Visits - Ops Site,Environment - Contract Management,19917 Severn Trent Serv Ops Uk Ltd,20189,699.18
"Department for Business, Energy and Industrial Strategy",The Coal Authority,30/10/2017,Minewater Contractor Maint. Visits - Ops Site,Environment - Contract Management,19917 Severn Trent Serv Ops Uk Ltd,20189,407.04
"Department for Business, Energy and Industrial Strategy",The Coal Authority,30/10/2017,Minewater Contractor Maint. Visits - Ops Site,Environment - Contract Management,19917 Severn Trent Serv Ops Uk Ltd,20189,162.4
"Department for Business, Energy and Industrial Strategy",The Coal Authority,30/10/2017,Minewater Contractor Maint. Visits - Ops Site,Environment - Contract Management,19917 Severn Trent Serv Ops Uk Ltd,20189,83.56
"Department for Business, Energy and Industrial Strategy",The Coal Authority,30/10/2017,Minewater Contractor Maint. Visits - Ops Site,Environment - Contract Management,19917 Severn Trent Serv Ops Uk Ltd,20189,61.15
"Department for Business, Energy and Industrial Strategy",The Coal Authority,30/10/2017,Minewater Contractor Maint. Visits - Ops Site,Environment - Contract Management,19917 Severn Trent Serv Ops Uk Ltd,20189,1015.61
"Department for Business, Energy and Industrial Strategy",The Coal Authority,30/10/2017,Minewater Contractor Maint. Visits - Ops Site,Environment - Contract Management,19917 Severn Trent Serv Ops Uk Ltd,20189,249.15
"Department for Business, Energy and Industrial Strategy",The Coal Authority,30/10/2017,Minewater Contractor Maint. Visits - Ops Site,Environment - Contract Management,19917 Severn Trent Serv Ops Uk Ltd,20189,95.16
"Department for Business, Energy and Industrial Strategy",The Coal Authority,30/10/2017,Minewater Contractor Maint. Visits - Ops Site,Environment - Contract Management,19917 Severn Trent Serv Ops Uk Ltd,20189,636.15
"Department for Business, Energy and Industrial Strategy",The Coal Authority,30/10/2017,Minewater Contractor Maint. Visits - Ops Site,Environment - Contract Management,19917 Severn Trent Serv Ops Uk Ltd,20189,161.78
"Department for Business, Energy and Industrial Strategy",The Coal Authority,30/10/2017,Minewater Contractor Maint. Visits - Ops Site,Environment - Contract Management,19917 Severn Trent Serv Ops Uk Ltd,20189,154.64
"Department for Business, Energy and Industrial Strategy",The Coal Authority,30/10/2017,Minewater Contractor Maint. Visits - Ops Site,Environment - Contract Management,19917 Severn Trent Serv Ops Uk Ltd,20189,297.46
"Department for Business, Energy and Industrial Strategy",The Coal Authority,30/10/2017,Minewater Contractor Maint. Visits - Ops Site,Environment - Contract Management,19917 Severn Trent Serv Ops Uk Ltd,20189,263.72
"Department for Business, Energy and Industrial Strategy",The Coal Authority,30/10/2017,Minewater Contractor Maint. Visits - Ops Site,Environment - Contract Management,19917 Severn Trent Serv Ops Uk Ltd,20189,189.45
"Department for Business, Energy and Industrial Strategy",The Coal Authority,30/10/2017,Minewater Contractor Maint. Visits - Ops Site,Environment - Contract Management,19917 Severn Trent Serv Ops Uk Ltd,20189,131.17
"Department for Business, Energy and Industrial Strategy",The Coal Authority,30/10/2017,Minewater Contractor Maint. Visits - Ops Site,Environment - Contract Management,19917 Severn Trent Serv Ops Uk Ltd,20189,23.49
"Department for Business, Energy and Industrial Strategy",The Coal Authority,30/10/2017,Minewater Contractor Maint. Visits - Ops Site,Environment - Contract Management,19917 Severn Trent Serv Ops Uk Ltd,20189,102.94
"Department for Business, Energy and Industrial Strategy",The Coal Authority,30/10/2017,Minewater Contractor Maint. Visits - Ops Site,Environment - Contract Management,19917 Severn Trent Serv Ops Uk Ltd,20189,351.67
"Department for Business, Energy and Industrial Strategy",The Coal Authority,30/10/2017,Minewater Contractor Maint. Visits - Ops Site,Environment - Contract Management,19917 Severn Trent Serv Ops Uk Ltd,20189,68.89
"Department for Business, Energy and Industrial Strategy",The Coal Authority,30/10/2017,Minewater Contractor Maint. Visits - Ops Site,Environment - Contract Management,19917 Severn Trent Serv Ops Uk Ltd,20189,29335.76
"Department for Business, Energy and Industrial Strategy",The Coal Authority,30/10/2017,Minewater Contractor Maint. Visits - Ops Site,Environment - Contract Management,19917 Severn Trent Serv Ops Uk Ltd,20189,92.31
"Department for Business, Energy and Industrial Strategy",The Coal Authority,30/10/2017,Minewater Contractor Maint. Visits - Ops Site,Environment - Contract Management,19917 Severn Trent Serv Ops Uk Ltd,20189,74.01
"Department for Business, Energy and Industrial Strategy",The Coal Authority,30/10/2017,Minewater Contractor Maint. Visits - Ops Site,Environment - Contract Management,19917 Severn Trent Serv Ops Uk Ltd,20189,1437.18
"Department for Business, Energy and Industrial Strategy",The Coal Authority,30/10/2017,Minewater Contractor Maint. Visits - Ops Site,Environment - Contract Management,19917 Severn Trent Serv Ops Uk Ltd,20189,991.91
"Department for Business, Energy and Industrial Strategy",The Coal Authority,30/10/2017,Minewater Contractor Maint. Visits - Ops Site,Environment - Contract Management,19917 Severn Trent Serv Ops Uk Ltd,20189,-687.51
"Department for Business, Energy and Industrial Strategy",The Coal Authority,30/10/2017,Minewater Contractor Maint. Visits - Ops Site,Environment - Contract Management,19917 Severn Trent Serv Ops Uk Ltd,20189,1202.97
"Department for Business, Energy and Industrial Strategy",The Coal Authority,30/10/2017,Minewater Contractor Maint. Visits - Ops Site,Environment - Contract Management,19917 Severn Trent Serv Ops Uk Ltd,20189,198.06
"Department for Business, Energy and Industrial Strategy",The Coal Authority,30/10/2017,Minewater Contractor Maint. Visits - Ops Site,Environment - Contract Management,19917 Severn Trent Serv Ops Uk Ltd,20189,195.28
"Department for Business, Energy and Industrial Strategy",The Coal Authority,30/10/2017,Minewater Contractor Maint. Visits - Ops Site,Environment - Contract Management,19917 Severn Trent Serv Ops Uk Ltd,20189,194.83
"Department for Business, Energy and Industrial Strategy",The Coal Authority,30/10/2017,Minewater Contractor Maint. Visits - Ops Site,Environment - Contract Management,19917 Severn Trent Serv Ops Uk Ltd,20189,313.16
"Department for Business, Energy and Industrial Strategy",The Coal Authority,30/10/2017,Minewater Contractor Maint. Visits - Ops Site,Environment - Contract Management,19917 Severn Trent Serv Ops Uk Ltd,20189,95.51
"Department for Business, Energy and Industrial Strategy",The Coal Authority,30/10/2017,Minewater Contractor Maint. Visits - Ops Site,Environment - Contract Management,19917 Severn Trent Serv Ops Uk Ltd,20189,208.95
"Department for Business, Energy and Industrial Strategy",The Coal Authority,30/10/2017,Minewater Contractor Maint. Visits - Ops Site,Environment - Contract Management,19917 Severn Trent Serv Ops Uk Ltd,20189,1.02
"Department for Business, Energy and Industrial Strategy",The Coal Authority,30/10/2017,Minewater Contractor Maint. Visits - Ops Site,Environment - Contract Management,19917 Severn Trent Serv Ops Uk Ltd,20189,76.93
"Department for Business, Energy and Industrial Strategy",The Coal Authority,30/10/2017,Minewater Contractor Maint. Visits - Ops Site,Environment - Contract Management,19917 Severn Trent Serv Ops Uk Ltd,20189,106.94
"Department for Business, Energy and Industrial Strategy",The Coal Authority,30/10/2017,Minewater Contractor Maint. Visits - Ops Site,Environment - Contract Management,19917 Severn Trent Serv Ops Uk Ltd,20189,755.07
"Department for Business, Energy and Industrial Strategy",The Coal Authority,30/10/2017,Minewater Contractor Maint. Visits - Ops Site,Environment - Contract Management,19917 Severn Trent Serv Ops Uk Ltd,20189,730.26
"Department for Business, Energy and Industrial Strategy",The Coal Authority,30/10/2017,Minewater Contractor Maint. Visits - Ops Site,Environment - Contract Management,19917 Severn Trent Serv Ops Uk Ltd,20189,79.3
"Department for Business, Energy and Industrial Strategy",The Coal Authority,30/10/2017,Minewater Contractor Maint. Visits - Ops Site,Environment - Contract Management,19917 Severn Trent Serv Ops Uk Ltd,20189,1413.7
"Department for Business, Energy and Industrial Strategy",The Coal Authority,30/10/2017,Minewater Contractor Maint. Visits - Ops Site,Environment - Contract Management,19917 Severn Trent Serv Ops Uk Ltd,20189,464.58
"Department for Business, Energy and Industrial Strategy",The Coal Authority,30/10/2017,Minewater Contractor Maint. Visits - Ops Site,Environment - Contract Management,19917 Severn Trent Serv Ops Uk Ltd,20189,49.97
"Department for Business, Energy and Industrial Strategy",The Coal Authority,30/10/2017,Minewater Contractor Maint. Visits - Ops Site,Environment - Contract Management,19917 Severn Trent Serv Ops Uk Ltd,20189,369.43
"Department for Business, Energy and Industrial Strategy",The Coal Authority,30/10/2017,Minewater Contractor Maint. Visits - Ops Site,Environment - Contract Management,19917 Severn Trent Serv Ops Uk Ltd,20189,290.99
"Department for Business, Energy and Industrial Strategy",The Coal Authority,30/10/2017,Minewater Contractor Maint. Visits - Ops Site,Environment - Contract Management,19917 Severn Trent Serv Ops Uk Ltd,20189,196.3
"Department for Business, Energy and Industrial Strategy",The Coal Authority,30/10/2017,Minewater Contractor Maint. Visits - Ops Site,Environment - Contract Management,19917 Severn Trent Serv Ops Uk Ltd,20189,1078.89
"Department for Business, Energy and Industrial Strategy",The Coal Authority,30/09/2017,Minewater Contractor Maint. Visits - Ops Site,Environment - Contract Management,National Coal Mining Museum,19978,3480
"Department for Business, Energy and Industrial Strategy",The Coal Authority,30/09/2017,Minewater Contractor Maint. Visits - Ops Site,Environment - Contract Management,National Coal Mining Museum,19979,2674.84
"Department for Business, Energy and Industrial Strategy",The Coal Authority,30/09/2017,Minewater Contractor Maint. Visits - Ops Site,Environment - Contract Management,National Coal Mining Museum,19980,810.13
"Department for Business, Energy and Industrial Strategy",The Coal Authority,02/10/2017,Minewater Discharge Consents,Environment - Contract Management,Natural Resources Wales,19526,120.56
"Department for Business, Energy and Industrial Strategy",The Coal Authority,30/10/2017,Minewater Landscaping,Environment - Contract Management,19917 Severn Trent Serv Ops Uk Ltd,20189,621.91
"Department for Business, Energy and Industrial Strategy",The Coal Authority,30/10/2017,Minewater Landscaping,Environment - Contract Management,19917 Severn Trent Serv Ops Uk Ltd,20189,1243.83
"Department for Business, Energy and Industrial Strategy",The Coal Authority,30/10/2017,Minewater Landscaping,Environment - Contract Management,19917 Severn Trent Serv Ops Uk Ltd,20189,233.23
"Department for Business, Energy and Industrial Strategy",The Coal Authority,30/10/2017,Minewater Landscaping,Environment - Contract Management,19917 Severn Trent Serv Ops Uk Ltd,20189,621.91
"Department for Business, Energy and Industrial Strategy",The Coal Authority,30/10/2017,Minewater Landscaping,Environment - Contract Management,19917 Severn Trent Serv Ops Uk Ltd,20189,-296.31
"Department for Business, Energy and Industrial Strategy",The Coal Authority,30/10/2017,Minewater Landscaping,Environment - Contract Management,19917 Severn Trent Serv Ops Uk Ltd,20189,973.28
"Department for Business, Energy and Industrial Strategy",The Coal Authority,30/10/2017,Minewater Landscaping,Environment - Contract Management,19917 Severn Trent Serv Ops Uk Ltd,20189,1554.78
"Department for Business, Energy and Industrial Strategy",The Coal Authority,30/10/2017,Minewater Landscaping,Environment - Contract Management,19917 Severn Trent Serv Ops Uk Ltd,20189,2848.36
"Department for Business, Energy and Industrial Strategy",The Coal Authority,30/10/2017,Minewater Landscaping,Environment - Contract Management,19917 Severn Trent Serv Ops Uk Ltd,20189,7913.52
"Department for Business, Energy and Industrial Strategy",The Coal Authority,30/10/2017,Minewater Landscaping,Environment - Contract Management,19917 Severn Trent Serv Ops Uk Ltd,20189,2279.3
"Department for Business, Energy and Industrial Strategy",The Coal Authority,30/10/2017,Minewater Landscaping,Environment - Contract Management,19917 Severn Trent Serv Ops Uk Ltd,20189,3717.8
"Department for Business, Energy and Industrial Strategy",The Coal Authority,30/10/2017,Minewater Landscaping,Environment - Contract Management,19917 Severn Trent Serv Ops Uk Ltd,20189,172.28
"Department for Business, Energy and Industrial Strategy",The Coal Authority,30/10/2017,Minewater Landscaping,Environment - Contract Management,19917 Severn Trent Serv Ops Uk Ltd,20189,-344.14
"Department for Business, Energy and Industrial Strategy",The Coal Authority,30/10/2017,Minewater Monitoring & Flow Measurement,Environment - Contract Management,19917 Severn Trent Serv Ops Uk Ltd,20189,71.78
"Department for Business, Energy and Industrial Strategy",The Coal Authority,30/10/2017,Minewater Monitoring & Flow Measurement,Environment - Contract Management,19917 Severn Trent Serv Ops Uk Ltd,20189,208.12
"Department for Business, Energy and Industrial Strategy",The Coal Authority,30/10/2017,Minewater Monitoring & Flow Measurement,Environment - Contract Management,19917 Severn Trent Serv Ops Uk Ltd,20189,27.24
"Department for Business, Energy and Industrial Strategy",The Coal Authority,30/10/2017,Minewater Monitoring & Flow Measurement,Environment - Contract Management,19917 Severn Trent Serv Ops Uk Ltd,20189,115.5
"Department for Business, Energy and Industrial Strategy",The Coal Authority,30/10/2017,Minewater Monitoring & Flow Measurement,Environment - Contract Management,19917 Severn Trent Serv Ops Uk Ltd,20189,58.29
"Department for Business, Energy and Industrial Strategy",The Coal Authority,30/10/2017,Minewater Monitoring & Flow Measurement,Environment - Contract Management,19917 Severn Trent Serv Ops Uk Ltd,20189,5.29
"Department for Business, Energy and Industrial Strategy",The Coal Authority,30/10/2017,Minewater Monitoring & Flow Measurement,Environment - Contract Management,19917 Severn Trent Serv Ops Uk Ltd,20189,257.82
"Department for Business, Energy and Industrial Strategy",The Coal Authority,30/10/2017,Minewater Monitoring & Flow Measurement,Environment - Contract Management,19917 Severn Trent Serv Ops Uk Ltd,20189,128.71
"Department for Business, Energy and Industrial Strategy",The Coal Authority,30/10/2017,Minewater Monitoring & Flow Measurement,Environment - Contract Management,19917 Severn Trent Serv Ops Uk Ltd,20189,58.6
"Department for Business, Energy and Industrial Strategy",The Coal Authority,30/10/2017,Minewater Monitoring & Flow Measurement,Environment - Contract Management,19917 Severn Trent Serv Ops Uk Ltd,20189,283.82
"Department for Business, Energy and Industrial Strategy",The Coal Authority,30/10/2017,Minewater Monitoring & Flow Measurement,Environment - Contract Management,19917 Severn Trent Serv Ops Uk Ltd,20189,31.26
"Department for Business, Energy and Industrial Strategy",The Coal Authority,30/10/2017,Minewater Monitoring & Flow Measurement,Environment - Contract Management,19917 Severn Trent Serv Ops Uk Ltd,20189,76.42
"Department for Business, Energy and Industrial Strategy",The Coal Authority,30/10/2017,Minewater Monitoring & Flow Measurement,Environment - Contract Management,19917 Severn Trent Serv Ops Uk Ltd,20189,74.49
"Department for Business, Energy and Industrial Strategy",The Coal Authority,30/10/2017,Minewater Monitoring & Flow Measurement,Environment - Contract Management,19917 Severn Trent Serv Ops Uk Ltd,20189,103.34
"Department for Business, Energy and Industrial Strategy",The Coal Authority,30/10/2017,Minewater Monitoring & Flow Measurement,Environment - Contract Management,19917 Severn Trent Serv Ops Uk Ltd,20189,34.45
"Department for Business, Energy and Industrial Strategy",The Coal Authority,30/10/2017,Minewater Monitoring & Flow Measurement,Environment - Contract Management,19917 Severn Trent Serv Ops Uk Ltd,20189,1744.78
"Department for Business, Energy and Industrial Strategy",The Coal Authority,30/10/2017,Minewater Monitoring & Flow Measurement,Environment - Contract Management,19917 Severn Trent Serv Ops Uk Ltd,20189,421.22
"Department for Business, Energy and Industrial Strategy",The Coal Authority,30/10/2017,Minewater Monitoring & Flow Measurement,Environment - Contract Management,19917 Severn Trent Serv Ops Uk Ltd,20189,338.42
"Department for Business, Energy and Industrial Strategy",The Coal Authority,30/10/2017,Minewater Monitoring & Flow Measurement,Environment - Contract Management,19917 Severn Trent Serv Ops Uk Ltd,20189,202.36
"Department for Business, Energy and Industrial Strategy",The Coal Authority,30/10/2017,Minewater Monitoring & Flow Measurement,Environment - Contract Management,19917 Severn Trent Serv Ops Uk Ltd,20189,47.77
"Department for Business, Energy and Industrial Strategy",The Coal Authority,30/10/2017,Minewater Monitoring & Flow Measurement,Environment - Contract Management,19917 Severn Trent Serv Ops Uk Ltd,20189,38.9
"Department for Business, Energy and Industrial Strategy",The Coal Authority,30/10/2017,Minewater Monitoring & Flow Measurement,Environment - Contract Management,19917 Severn Trent Serv Ops Uk Ltd,20189,13.59
"Department for Business, Energy and Industrial Strategy",The Coal Authority,30/10/2017,Minewater Monitoring & Flow Measurement,Environment - Contract Management,19917 Severn Trent Serv Ops Uk Ltd,20189,757.79
"Department for Business, Energy and Industrial Strategy",The Coal Authority,30/10/2017,Minewater Monitoring & Flow Measurement,Environment - Contract Management,19917 Severn Trent Serv Ops Uk Ltd,20189,25.77
"Department for Business, Energy and Industrial Strategy",The Coal Authority,30/10/2017,Minewater Monitoring & Flow Measurement,Environment - Contract Management,19917 Severn Trent Serv Ops Uk Ltd,20189,21.14
"Department for Business, Energy and Industrial Strategy",The Coal Authority,30/10/2017,Minewater Monitoring & Flow Measurement,Environment - Contract Management,19917 Severn Trent Serv Ops Uk Ltd,20189,72.69
"Department for Business, Energy and Industrial Strategy",The Coal Authority,30/10/2017,Minewater Monitoring & Flow Measurement,Environment - Contract Management,19917 Severn Trent Serv Ops Uk Ltd,20189,102.57
"Department for Business, Energy and Industrial Strategy",The Coal Authority,30/10/2017,Minewater Monitoring & Flow Measurement,Environment - Contract Management,19917 Severn Trent Serv Ops Uk Ltd,20189,78.16
"Department for Business, Energy and Industrial Strategy",The Coal Authority,30/10/2017,Minewater Monitoring & Flow Measurement,Environment - Contract Management,19917 Severn Trent Serv Ops Uk Ltd,20189,138.46
"Department for Business, Energy and Industrial Strategy",The Coal Authority,30/10/2017,Minewater Monitoring & Flow Measurement,Environment - Contract Management,19917 Severn Trent Serv Ops Uk Ltd,20189,34.45
"Department for Business, Energy and Industrial Strategy",The Coal Authority,30/10/2017,Minewater Monitoring & Flow Measurement,Environment - Contract Management,19917 Severn Trent Serv Ops Uk Ltd,20189,334.95
"Department for Business, Energy and Industrial Strategy",The Coal Authority,30/10/2017,Minewater Monitoring & Flow Measurement,Environment - Contract Management,19917 Severn Trent Serv Ops Uk Ltd,20189,55.92
"Department for Business, Energy and Industrial Strategy",The Coal Authority,30/10/2017,Minewater Monitoring & Flow Measurement,Environment - Contract Management,19917 Severn Trent Serv Ops Uk Ltd,20189,117.73
"Department for Business, Energy and Industrial Strategy",The Coal Authority,30/10/2017,Minewater Monitoring & Flow Measurement,Environment - Contract Management,19917 Severn Trent Serv Ops Uk Ltd,20189,8.6
"Department for Business, Energy and Industrial Strategy",The Coal Authority,30/10/2017,Minewater Monitoring & Flow Measurement,Environment - Contract Management,19917 Severn Trent Serv Ops Uk Ltd,20189,51.67
"Department for Business, Energy and Industrial Strategy",The Coal Authority,30/10/2017,Minewater Monitoring & Flow Measurement,Environment - Contract Management,19917 Severn Trent Serv Ops Uk Ltd,20189,180.8
"Department for Business, Energy and Industrial Strategy",The Coal Authority,30/10/2017,Minewater Monitoring & Flow Measurement,Environment - Contract Management,19917 Severn Trent Serv Ops Uk Ltd,20189,48.63
"Department for Business, Energy and Industrial Strategy",The Coal Authority,30/10/2017,Minewater Monitoring & Flow Measurement,Environment - Contract Management,19917 Severn Trent Serv Ops Uk Ltd,20189,434.81
"Department for Business, Energy and Industrial Strategy",The Coal Authority,30/10/2017,Minewater Monitoring & Flow Measurement,Environment - Contract Management,19917 Severn Trent Serv Ops Uk Ltd,20189,140.41
"Department for Business, Energy and Industrial Strategy",The Coal Authority,30/10/2017,Minewater Monitoring & Flow Measurement,Environment - Contract Management,19917 Severn Trent Serv Ops Uk Ltd,20189,249.73
"Department for Business, Energy and Industrial Strategy",The Coal Authority,30/10/2017,Minewater Monitoring & Flow Measurement,Environment - Contract Management,19917 Severn Trent Serv Ops Uk Ltd,20189,100.89
"Department for Business, Energy and Industrial Strategy",The Coal Authority,30/10/2017,Minewater Monitoring & Flow Measurement,Environment - Contract Management,19917 Severn Trent Serv Ops Uk Ltd,20189,111.32
"Department for Business, Energy and Industrial Strategy",The Coal Authority,30/10/2017,Minewater Monitoring & Flow Measurement,Environment - Contract Management,19917 Severn Trent Serv Ops Uk Ltd,20189,359.75
"Department for Business, Energy and Industrial Strategy",The Coal Authority,30/10/2017,Minewater Monitoring & Flow Measurement,Environment - Contract Management,19917 Severn Trent Serv Ops Uk Ltd,20189,291.72
"Department for Business, Energy and Industrial Strategy",The Coal Authority,30/10/2017,Minewater Monitoring & Flow Measurement,Environment - Contract Management,19917 Severn Trent Serv Ops Uk Ltd,20189,21.16
"Department for Business, Energy and Industrial Strategy",The Coal Authority,30/10/2017,Minewater Monitoring & Flow Measurement,Environment - Contract Management,19917 Severn Trent Serv Ops Uk Ltd,20189,61.52
"Department for Business, Energy and Industrial Strategy",The Coal Authority,30/10/2017,Minewater Monitoring & Flow Measurement,Environment - Contract Management,19917 Severn Trent Serv Ops Uk Ltd,20189,403.55
"Department for Business, Energy and Industrial Strategy",The Coal Authority,30/10/2017,Minewater Monitoring & Flow Measurement,Environment - Contract Management,19917 Severn Trent Serv Ops Uk Ltd,20189,127.15
"Department for Business, Energy and Industrial Strategy",The Coal Authority,30/10/2017,Minewater Monitoring & Flow Measurement,Environment - Contract Management,19917 Severn Trent Serv Ops Uk Ltd,20189,10.57
"Department for Business, Energy and Industrial Strategy",The Coal Authority,30/10/2017,Minewater Monitoring & Flow Measurement,Environment - Contract Management,19917 Severn Trent Serv Ops Uk Ltd,20189,350.38
"Department for Business, Energy and Industrial Strategy",The Coal Authority,30/10/2017,Minewater Monitoring & Flow Measurement,Environment - Contract Management,19917 Severn Trent Serv Ops Uk Ltd,20189,10.53
"Department for Business, Energy and Industrial Strategy",The Coal Authority,30/10/2017,Minewater Monitoring & Flow Measurement,Environment - Contract Management,19917 Severn Trent Serv Ops Uk Ltd,20189,51.55
"Department for Business, Energy and Industrial Strategy",The Coal Authority,30/10/2017,Minewater Monitoring & Flow Measurement,Environment - Contract Management,19917 Severn Trent Serv Ops Uk Ltd,20189,175.03
"Department for Business, Energy and Industrial Strategy",The Coal Authority,30/10/2017,Minewater Monitoring & Flow Measurement,Environment - Contract Management,19917 Severn Trent Serv Ops Uk Ltd,20189,65.92
"Department for Business, Energy and Industrial Strategy",The Coal Authority,30/10/2017,Minewater Monitoring & Flow Measurement,Environment - Contract Management,19917 Severn Trent Serv Ops Uk Ltd,20189,610.21
"Department for Business, Energy and Industrial Strategy",The Coal Authority,05/10/2017,Minewater Monitoring & Flow Measurement,Environment - Contract Management,Environmental Scientifics Grp,19477,172.55
"Department for Business, Energy and Industrial Strategy",The Coal Authority,11/10/2017,Minewater Monitoring & Flow Measurement,Environment - Contract Management,Environmental Scientifics Grp,19641,480
"Department for Business, Energy and Industrial Strategy",The Coal Authority,14/09/2017,Minewater Monitoring & Flow Measurement,Environment - Contract Management,SOCOTEC UK Limited,20135,294.35
"Department for Business, Energy and Industrial Strategy",The Coal Authority,17/10/2017,Minewater Monitoring & Flow Measurement,Environment - Contract Management,SOCOTEC UK Limited,19811,165
"Department for Business, Energy and Industrial Strategy",The Coal Authority,19/10/2017,Minewater Monitoring & Flow Measurement,Environment - Contract Management,SOCOTEC UK Limited,19878,172.55
"Department for Business, Energy and Industrial Strategy",The Coal Authority,30/10/2017,Minewater Power Costs,Environment - Contract Management,19917 Severn Trent Serv Ops Uk Ltd,20189,260.09
"Department for Business, Energy and Industrial Strategy",The Coal Authority,30/10/2017,Minewater Power Costs,Environment - Contract Management,19917 Severn Trent Serv Ops Uk Ltd,20189,75893.05
"Department for Business, Energy and Industrial Strategy",The Coal Authority,03/10/2017,Minewater Power Costs,Environment - Contract Management,British Gas Business,19530,1138.17
"Department for Business, Energy and Industrial Strategy",The Coal Authority,03/10/2017,Minewater Power Costs,Environment - Contract Management,British Gas Business,19532,283.75
"Department for Business, Energy and Industrial Strategy",The Coal Authority,11/10/2017,Minewater Power Costs,Environment - Contract Management,British Gas Business,19836,752.29
"Department for Business, Energy and Industrial Strategy",The Coal Authority,11/10/2017,Minewater Power Costs,Environment - Contract Management,British Gas Business,20109,1201.73
"Department for Business, Energy and Industrial Strategy",The Coal Authority,11/10/2017,Minewater Power Costs,Environment - Contract Management,British Gas Business,20109,275.56
"Department for Business, Energy and Industrial Strategy",The Coal Authority,11/10/2017,Minewater Power Costs,Environment - Contract Management,British Gas Business,20109,1050.38
"Department for Business, Energy and Industrial Strategy",The Coal Authority,11/10/2017,Minewater Power Costs,Environment - Contract Management,British Gas Business,20109,203.63
"Department for Business, Energy and Industrial Strategy",The Coal Authority,11/10/2017,Minewater Power Costs,Environment - Contract Management,British Gas Business,20109,1544.62
"Department for Business, Energy and Industrial Strategy",The Coal Authority,11/10/2017,Minewater Power Costs,Environment - Contract Management,British Gas Business,20109,303.27
"Department for Business, Energy and Industrial Strategy",The Coal Authority,11/10/2017,Minewater Power Costs,Environment - Contract Management,British Gas Business,20109,10.16
"Department for Business, Energy and Industrial Strategy",The Coal Authority,11/10/2017,Minewater Power Costs,Environment - Contract Management,British Gas Business,20109,543.4
"Department for Business, Energy and Industrial Strategy",The Coal Authority,11/10/2017,Minewater Power Costs,Environment - Contract Management,British Gas Business,20109,131.09
"Department for Business, Energy and Industrial Strategy",The Coal Authority,11/10/2017,Minewater Power Costs,Environment - Contract Management,British Gas Business,20109,862.29
"Department for Business, Energy and Industrial Strategy",The Coal Authority,11/10/2017,Minewater Power Costs,Environment - Contract Management,British Gas Business,20109,1109.7
"Department for Business, Energy and Industrial Strategy",The Coal Authority,11/10/2017,Minewater Power Costs,Environment - Contract Management,British Gas Business,20109,796.07
"Department for Business, Energy and Industrial Strategy",The Coal Authority,11/10/2017,Minewater Power Costs,Environment - Contract Management,British Gas Business,20109,256.54
"Department for Business, Energy and Industrial Strategy",The Coal Authority,05/10/2017,Minewater Power Costs,Environment - Contract Management,Edf Energy,20115,954.14
"Department for Business, Energy and Industrial Strategy",The Coal Authority,05/10/2017,Minewater Power Costs,Environment - Contract Management,Edf Energy,20115,726.51
"Department for Business, Energy and Industrial Strategy",The Coal Authority,05/10/2017,Minewater Power Costs,Environment - Contract Management,Edf Energy,20115,21.1
"Department for Business, Energy and Industrial Strategy",The Coal Authority,05/10/2017,Minewater Power Costs,Environment - Contract Management,Edf Energy,20115,4431.75
"Department for Business, Energy and Industrial Strategy",The Coal Authority,05/10/2017,Minewater Power Costs,Environment - Contract Management,Edf Energy,20115,8170.64
"Department for Business, Energy and Industrial Strategy",The Coal Authority,05/10/2017,Minewater Power Costs,Environment - Contract Management,Edf Energy,20115,6431.92
"Department for Business, Energy and Industrial Strategy",The Coal Authority,05/10/2017,Minewater Power Costs,Environment - Contract Management,Edf Energy,20115,2875.7
"Department for Business, Energy and Industrial Strategy",The Coal Authority,05/10/2017,Minewater Power Costs,Environment - Contract Management,Edf Energy,20115,9669.59
"Department for Business, Energy and Industrial Strategy",The Coal Authority,05/10/2017,Minewater Power Costs,Environment - Contract Management,Edf Energy,20115,10490.76
"Department for Business, Energy and Industrial Strategy",The Coal Authority,05/10/2017,Minewater Power Costs,Environment - Contract Management,Edf Energy,20115,696.94
"Department for Business, Energy and Industrial Strategy",The Coal Authority,05/10/2017,Minewater Power Costs,Environment - Contract Management,Edf Energy,20115,1331.95
"Department for Business, Energy and Industrial Strategy",The Coal Authority,05/10/2017,Minewater Power Costs,Environment - Contract Management,Edf Energy,20115,3378.87
"Department for Business, Energy and Industrial Strategy",The Coal Authority,05/10/2017,Minewater Power Costs,Environment - Contract Management,Edf Energy,20115,4614.32
"Department for Business, Energy and Industrial Strategy",The Coal Authority,05/10/2017,Minewater Power Costs,Environment - Contract Management,Edf Energy,20115,8480.06
"Department for Business, Energy and Industrial Strategy",The Coal Authority,05/10/2017,Minewater Power Costs,Environment - Contract Management,Edf Energy,20115,334.37
"Department for Business, Energy and Industrial Strategy",The Coal Authority,05/10/2017,Minewater Power Costs,Environment - Contract Management,Edf Energy,20115,12199.75
"Department for Business, Energy and Industrial Strategy",The Coal Authority,05/10/2017,Minewater Power Costs,Environment - Contract Management,Edf Energy,20115,14187.57
"Department for Business, Energy and Industrial Strategy",The Coal Authority,05/10/2017,Minewater Power Costs,Environment - Contract Management,Edf Energy,20115,911.73
"Department for Business, Energy and Industrial Strategy",The Coal Authority,05/10/2017,Minewater Power Costs,Environment - Contract Management,Edf Energy,20115,7902.11
"Department for Business, Energy and Industrial Strategy",The Coal Authority,05/10/2017,Minewater Power Costs,Environment - Contract Management,Edf Energy,20115,1505.73
"Department for Business, Energy and Industrial Strategy",The Coal Authority,05/10/2017,Minewater Power Costs,Environment - Contract Management,Edf Energy,20115,4453.19
"Department for Business, Energy and Industrial Strategy",The Coal Authority,05/10/2017,Minewater Power Costs,Environment - Contract Management,Edf Energy,20115,10155.33
"Department for Business, Energy and Industrial Strategy",The Coal Authority,05/10/2017,Minewater Power Costs,Environment - Contract Management,Edf Energy,20115,1084.32
"Department for Business, Energy and Industrial Strategy",The Coal Authority,05/10/2017,Minewater Power Costs,Environment - Contract Management,Edf Energy,20115,715.31
"Department for Business, Energy and Industrial Strategy",The Coal Authority,05/10/2017,Minewater Power Costs,Environment - Contract Management,Edf Energy,20115,7815.91
"Department for Business, Energy and Industrial Strategy",The Coal Authority,05/10/2017,Minewater Power Costs,Environment - Contract Management,Edf Energy,20115,18016.44
"Department for Business, Energy and Industrial Strategy",The Coal Authority,10/10/2017,Minewater Power Costs,Environment - Contract Management,National Coal Mining Museum,19766,8330.94
"Department for Business, Energy and Industrial Strategy",The Coal Authority,20/10/2017,Minewater Power Costs,Environment - Contract Management,National Coal Mining Museum,20003,4750
"Department for Business, Energy and Industrial Strategy",The Coal Authority,24/10/2017,Minewater Power Costs,Environment - Contract Management,National Coal Mining Museum,20143,-21
"Department for Business, Energy and Industrial Strategy",The Coal Authority,03/10/2017,Minewater Power Costs,Environment - Contract Management,Npower,19778,710
"Department for Business, Energy and Industrial Strategy",The Coal Authority,03/10/2017,Minewater Power Costs,Environment - Contract Management,Npower,19779,315
"Department for Business, Energy and Industrial Strategy",The Coal Authority,03/10/2017,Minewater Power Costs,Environment - Contract Management,Npower,19779,315
"Department for Business, Energy and Industrial Strategy",The Coal Authority,30/10/2017,Minewater Pump Overhauls,Environment - Contract Management,19917 Severn Trent Serv Ops Uk Ltd,20189,4731.82
"Department for Business, Energy and Industrial Strategy",The Coal Authority,30/10/2017,Minewater Remediation,Environment - Contract Management,19917 Severn Trent Serv Ops Uk Ltd,20189,25198.09
"Department for Business, Energy and Industrial Strategy",The Coal Authority,20/10/2017,Minewater Rent,Environment - Contract Management,A W Richardson & Sons,19859,593.89
"Department for Business, Energy and Industrial Strategy",The Coal Authority,19/10/2017,Minewater Rent,Environment - Contract Management,Rental Payment,19851,452.84
"Department for Business, Energy and Industrial Strategy",The Coal Authority,23/09/2017,Minewater Rent,Environment - Contract Management,Fife Council,19286,500
"Department for Business, Energy and Industrial Strategy",The Coal Authority,23/10/2017,Minewater Rent,Environment - Contract Management,Rental Payment,19901,15000
"Department for Business, Energy and Industrial Strategy",The Coal Authority,20/10/2017,Minewater Rent,Environment - Contract Management,Compensation Payment,19856,495
"Department for Business, Energy and Industrial Strategy",The Coal Authority,19/10/2017,Minewater Rent,Environment - Contract Management,Rental Payment,19849,100
"Department for Business, Energy and Industrial Strategy",The Coal Authority,19/10/2017,Minewater Rent,Environment - Contract Management,Rental Payment,19852,750
"Department for Business, Energy and Industrial Strategy",The Coal Authority,19/10/2017,Minewater Rent,Environment - Contract Management,Rental Payment,19848,100
"Department for Business, Energy and Industrial Strategy",The Coal Authority,20/10/2017,Minewater Rent,Environment - Contract Management,Upper Haugh Cricket Club,19861,200
"Department for Business, Energy and Industrial Strategy",The Coal Authority,30/10/2017,Minewater Sampling - Operational Sites,Environment - Contract Management,19917 Severn Trent Serv Ops Uk Ltd,20189,-265.3
"Department for Business, Energy and Industrial Strategy",The Coal Authority,30/10/2017,Minewater Sampling - Operational Sites,Environment - Contract Management,19917 Severn Trent Serv Ops Uk Ltd,20189,38.47
"Department for Business, Energy and Industrial Strategy",The Coal Authority,30/10/2017,Minewater Sampling - Operational Sites,Environment - Contract Management,19917 Severn Trent Serv Ops Uk Ltd,20189,15.24
"Department for Business, Energy and Industrial Strategy",The Coal Authority,30/10/2017,Minewater Sampling - Operational Sites,Environment - Contract Management,19917 Severn Trent Serv Ops Uk Ltd,20189,33.97
"Department for Business, Energy and Industrial Strategy",The Coal Authority,30/10/2017,Minewater Sampling - Operational Sites,Environment - Contract Management,19917 Severn Trent Serv Ops Uk Ltd,20189,7.39
"Department for Business, Energy and Industrial Strategy",The Coal Authority,30/10/2017,Minewater Sampling - Operational Sites,Environment - Contract Management,19917 Severn Trent Serv Ops Uk Ltd,20189,42.3
"Department for Business, Energy and Industrial Strategy",The Coal Authority,30/10/2017,Minewater Sampling - Operational Sites,Environment - Contract Management,19917 Severn Trent Serv Ops Uk Ltd,20189,146.77
"Department for Business, Energy and Industrial Strategy",The Coal Authority,30/10/2017,Minewater Sampling - Operational Sites,Environment - Contract Management,19917 Severn Trent Serv Ops Uk Ltd,20189,43.95
"Department for Business, Energy and Industrial Strategy",The Coal Authority,30/10/2017,Minewater Sampling - Operational Sites,Environment - Contract Management,19917 Severn Trent Serv Ops Uk Ltd,20189,139.56
"Department for Business, Energy and Industrial Strategy",The Coal Authority,30/10/2017,Minewater Sampling - Operational Sites,Environment - Contract Management,19917 Severn Trent Serv Ops Uk Ltd,20189,41.68
"Department for Business, Energy and Industrial Strategy",The Coal Authority,30/10/2017,Minewater Sampling - Operational Sites,Environment - Contract Management,19917 Severn Trent Serv Ops Uk Ltd,20189,4.63
"Department for Business, Energy and Industrial Strategy",The Coal Authority,30/10/2017,Minewater Sampling - Operational Sites,Environment - Contract Management,19917 Severn Trent Serv Ops Uk Ltd,20189,66.29
"Department for Business, Energy and Industrial Strategy",The Coal Authority,30/10/2017,Minewater Sampling - Operational Sites,Environment - Contract Management,19917 Severn Trent Serv Ops Uk Ltd,20189,43.05
"Department for Business, Energy and Industrial Strategy",The Coal Authority,30/10/2017,Minewater Sampling - Operational Sites,Environment - Contract Management,19917 Severn Trent Serv Ops Uk Ltd,20189,43.05
"Department for Business, Energy and Industrial Strategy",The Coal Authority,30/10/2017,Minewater Sampling - Operational Sites,Environment - Contract Management,19917 Severn Trent Serv Ops Uk Ltd,20189,250.96
"Department for Business, Energy and Industrial Strategy",The Coal Authority,30/10/2017,Minewater Sampling - Operational Sites,Environment - Contract Management,19917 Severn Trent Serv Ops Uk Ltd,20189,217.4
"Department for Business, Energy and Industrial Strategy",The Coal Authority,30/10/2017,Minewater Sampling - Operational Sites,Environment - Contract Management,19917 Severn Trent Serv Ops Uk Ltd,20189,23.26
"Department for Business, Energy and Industrial Strategy",The Coal Authority,30/10/2017,Minewater Sampling - Operational Sites,Environment - Contract Management,19917 Severn Trent Serv Ops Uk Ltd,20189,79.08
"Department for Business, Energy and Industrial Strategy",The Coal Authority,30/10/2017,Minewater Sampling - Operational Sites,Environment - Contract Management,19917 Severn Trent Serv Ops Uk Ltd,20189,5.62
"Department for Business, Energy and Industrial Strategy",The Coal Authority,30/10/2017,Minewater Sampling - Operational Sites,Environment - Contract Management,19917 Severn Trent Serv Ops Uk Ltd,20189,87.62
"Department for Business, Energy and Industrial Strategy",The Coal Authority,30/10/2017,Minewater Sampling - Operational Sites,Environment - Contract Management,19917 Severn Trent Serv Ops Uk Ltd,20189,20.38
"Department for Business, Energy and Industrial Strategy",The Coal Authority,30/10/2017,Minewater Sampling - Operational Sites,Environment - Contract Management,19917 Severn Trent Serv Ops Uk Ltd,20189,34.37
"Department for Business, Energy and Industrial Strategy",The Coal Authority,30/10/2017,Minewater Sampling - Operational Sites,Environment - Contract Management,19917 Severn Trent Serv Ops Uk Ltd,20189,47.58
"Department for Business, Energy and Industrial Strategy",The Coal Authority,30/10/2017,Minewater Sampling - Operational Sites,Environment - Contract Management,19917 Severn Trent Serv Ops Uk Ltd,20189,159
"Department for Business, Energy and Industrial Strategy",The Coal Authority,30/10/2017,Minewater Sampling - Operational Sites,Environment - Contract Management,19917 Severn Trent Serv Ops Uk Ltd,20189,92.97
"Department for Business, Energy and Industrial Strategy",The Coal Authority,30/10/2017,Minewater Sampling - Operational Sites,Environment - Contract Management,19917 Severn Trent Serv Ops Uk Ltd,20189,42.96
"Department for Business, Energy and Industrial Strategy",The Coal Authority,30/10/2017,Minewater Sampling - Operational Sites,Environment - Contract Management,19917 Severn Trent Serv Ops Uk Ltd,20189,58.15
"Department for Business, Energy and Industrial Strategy",The Coal Authority,30/10/2017,Minewater Sampling - Operational Sites,Environment - Contract Management,19917 Severn Trent Serv Ops Uk Ltd,20189,85.06
"Department for Business, Energy and Industrial Strategy",The Coal Authority,30/10/2017,Minewater Sampling - Operational Sites,Environment - Contract Management,19917 Severn Trent Serv Ops Uk Ltd,20189,77.5
"Department for Business, Energy and Industrial Strategy",The Coal Authority,30/10/2017,Minewater Sampling - Operational Sites,Environment - Contract Management,19917 Severn Trent Serv Ops Uk Ltd,20189,9.59
"Department for Business, Energy and Industrial Strategy",The Coal Authority,30/10/2017,Minewater Sampling - Operational Sites,Environment - Contract Management,19917 Severn Trent Serv Ops Uk Ltd,20189,12.57
"Department for Business, Energy and Industrial Strategy",The Coal Authority,30/10/2017,Minewater Sampling - Operational Sites,Environment - Contract Management,19917 Severn Trent Serv Ops Uk Ltd,20189,149.81
"Department for Business, Energy and Industrial Strategy",The Coal Authority,30/10/2017,Minewater Sampling - Operational Sites,Environment - Contract Management,19917 Severn Trent Serv Ops Uk Ltd,20189,12.57
"Department for Business, Energy and Industrial Strategy",The Coal Authority,30/10/2017,Minewater Sampling - Operational Sites,Environment - Contract Management,19917 Severn Trent Serv Ops Uk Ltd,20189,34.45
"Department for Business, Energy and Industrial Strategy",The Coal Authority,30/10/2017,Minewater Sampling - Operational Sites,Environment - Contract Management,19917 Severn Trent Serv Ops Uk Ltd,20189,10.42
"Department for Business, Energy and Industrial Strategy",The Coal Authority,30/10/2017,Minewater Sampling - Operational Sites,Environment - Contract Management,19917 Severn Trent Serv Ops Uk Ltd,20189,36.05
"Department for Business, Energy and Industrial Strategy",The Coal Authority,30/10/2017,Minewater Sampling - Operational Sites,Environment - Contract Management,19917 Severn Trent Serv Ops Uk Ltd,20189,31.72
"Department for Business, Energy and Industrial Strategy",The Coal Authority,30/10/2017,Minewater Sampling - Operational Sites,Environment - Contract Management,19917 Severn Trent Serv Ops Uk Ltd,20189,149.46
"Department for Business, Energy and Industrial Strategy",The Coal Authority,30/10/2017,Minewater Sampling - Operational Sites,Environment - Contract Management,19917 Severn Trent Serv Ops Uk Ltd,20189,43.03
"Department for Business, Energy and Industrial Strategy",The Coal Authority,30/10/2017,Minewater Sampling - Operational Sites,Environment - Contract Management,19917 Severn Trent Serv Ops Uk Ltd,20189,60.28
"Department for Business, Energy and Industrial Strategy",The Coal Authority,30/10/2017,Minewater Sampling - Operational Sites,Environment - Contract Management,19917 Severn Trent Serv Ops Uk Ltd,20189,158.21
"Department for Business, Energy and Industrial Strategy",The Coal Authority,30/10/2017,Minewater Sampling - Operational Sites,Environment - Contract Management,19917 Severn Trent Serv Ops Uk Ltd,20189,140.63
"Department for Business, Energy and Industrial Strategy",The Coal Authority,30/10/2017,Minewater Sampling - Operational Sites,Environment - Contract Management,19917 Severn Trent Serv Ops Uk Ltd,20189,62.51
"Department for Business, Energy and Industrial Strategy",The Coal Authority,30/10/2017,Minewater Sampling - Operational Sites,Environment - Contract Management,19917 Severn Trent Serv Ops Uk Ltd,20189,51.29
"Department for Business, Energy and Industrial Strategy",The Coal Authority,30/10/2017,Minewater Sampling - Operational Sites,Environment - Contract Management,19917 Severn Trent Serv Ops Uk Ltd,20189,46.88
"Department for Business, Energy and Industrial Strategy",The Coal Authority,30/10/2017,Minewater Sampling - Operational Sites,Environment - Contract Management,19917 Severn Trent Serv Ops Uk Ltd,20189,51.17
"Department for Business, Energy and Industrial Strategy",The Coal Authority,30/10/2017,Minewater Sampling - Operational Sites,Environment - Contract Management,19917 Severn Trent Serv Ops Uk Ltd,20189,197.6
"Department for Business, Energy and Industrial Strategy",The Coal Authority,30/10/2017,Minewater Sampling - Operational Sites,Environment - Contract Management,19917 Severn Trent Serv Ops Uk Ltd,20189,60.14
"Department for Business, Energy and Industrial Strategy",The Coal Authority,30/10/2017,Minewater Sampling - Operational Sites,Environment - Contract Management,19917 Severn Trent Serv Ops Uk Ltd,20189,6.47
"Department for Business, Energy and Industrial Strategy",The Coal Authority,30/10/2017,Minewater Sampling - Operational Sites,Environment - Contract Management,19917 Severn Trent Serv Ops Uk Ltd,20189,85.91
"Department for Business, Energy and Industrial Strategy",The Coal Authority,30/10/2017,Minewater Sampling - Operational Sites,Environment - Contract Management,19917 Severn Trent Serv Ops Uk Ltd,20189,104.19
"Department for Business, Energy and Industrial Strategy",The Coal Authority,30/10/2017,Minewater Sampling - Operational Sites,Environment - Contract Management,19917 Severn Trent Serv Ops Uk Ltd,20189,96.68
"Department for Business, Energy and Industrial Strategy",The Coal Authority,30/10/2017,Minewater Sampling - Operational Sites,Environment - Contract Management,19917 Severn Trent Serv Ops Uk Ltd,20189,271.73
"Department for Business, Energy and Industrial Strategy",The Coal Authority,30/10/2017,Minewater Sampling - Operational Sites,Environment - Contract Management,19917 Severn Trent Serv Ops Uk Ltd,20189,-6205.51
"Department for Business, Energy and Industrial Strategy",The Coal Authority,30/10/2017,Minewater Sampling - Operational Sites,Environment - Contract Management,19917 Severn Trent Serv Ops Uk Ltd,20189,-11.49
"Department for Business, Energy and Industrial Strategy",The Coal Authority,30/10/2017,Minewater Sludge Disposal,Environment - Contract Management,19917 Severn Trent Serv Ops Uk Ltd,20189,-393.94
"Department for Business, Energy and Industrial Strategy",The Coal Authority,30/10/2017,Minewater Sludge Disposal,Environment - Contract Management,19917 Severn Trent Serv Ops Uk Ltd,20189,34.69
"Department for Business, Energy and Industrial Strategy",The Coal Authority,30/10/2017,Minewater Sludge Disposal,Environment - Contract Management,19917 Severn Trent Serv Ops Uk Ltd,20189,0.46
"Department for Business, Energy and Industrial Strategy",The Coal Authority,30/10/2017,Minewater Sludge Disposal,Environment - Contract Management,19917 Severn Trent Serv Ops Uk Ltd,20189,56.24
"Department for Business, Energy and Industrial Strategy",The Coal Authority,30/10/2017,Minewater Sludge Disposal,Environment - Contract Management,19917 Severn Trent Serv Ops Uk Ltd,20189,26.65
"Department for Business, Energy and Industrial Strategy",The Coal Authority,30/10/2017,Minewater Sludge Disposal,Environment - Contract Management,19917 Severn Trent Serv Ops Uk Ltd,20189,7347.6
"Department for Business, Energy and Industrial Strategy",The Coal Authority,30/10/2017,Minewater Sludge Disposal,Environment - Contract Management,19917 Severn Trent Serv Ops Uk Ltd,20189,95.11
"Department for Business, Energy and Industrial Strategy",The Coal Authority,30/10/2017,Minewater Sludge Disposal,Environment - Contract Management,19917 Severn Trent Serv Ops Uk Ltd,20189,12.82
"Department for Business, Energy and Industrial Strategy",The Coal Authority,30/10/2017,Minewater Sludge Disposal,Environment - Contract Management,19917 Severn Trent Serv Ops Uk Ltd,20189,103.34
"Department for Business, Energy and Industrial Strategy",The Coal Authority,30/10/2017,Minewater Sludge Disposal,Environment - Contract Management,19917 Severn Trent Serv Ops Uk Ltd,20189,18.48
"Department for Business, Energy and Industrial Strategy",The Coal Authority,30/10/2017,Minewater Sludge Disposal,Environment - Contract Management,19917 Severn Trent Serv Ops Uk Ltd,20189,8.61
"Department for Business, Energy and Industrial Strategy",The Coal Authority,30/10/2017,Minewater Sludge Disposal,Environment - Contract Management,19917 Severn Trent Serv Ops Uk Ltd,20189,19.4
"Department for Business, Energy and Industrial Strategy",The Coal Authority,30/10/2017,Minewater Sludge Disposal,Environment - Contract Management,19917 Severn Trent Serv Ops Uk Ltd,20189,34.45
"Department for Business, Energy and Industrial Strategy",The Coal Authority,30/10/2017,Minewater Sludge Disposal,Environment - Contract Management,19917 Severn Trent Serv Ops Uk Ltd,20189,22.1
"Department for Business, Energy and Industrial Strategy",The Coal Authority,30/10/2017,Minewater Sludge Disposal,Environment - Contract Management,19917 Severn Trent Serv Ops Uk Ltd,20189,2.77
"Department for Business, Energy and Industrial Strategy",The Coal Authority,30/10/2017,Minewater Sludge Disposal,Environment - Contract Management,19917 Severn Trent Serv Ops Uk Ltd,20189,17.18
"Department for Business, Energy and Industrial Strategy",The Coal Authority,30/10/2017,Minewater Sludge Disposal,Environment - Contract Management,19917 Severn Trent Serv Ops Uk Ltd,20189,26.37
"Department for Business, Energy and Industrial Strategy",The Coal Authority,30/10/2017,Minewater Sludge Disposal,Environment - Contract Management,19917 Severn Trent Serv Ops Uk Ltd,20189,3161.43
"Department for Business, Energy and Industrial Strategy",The Coal Authority,30/10/2017,Minewater Sludge Disposal,Environment - Contract Management,19917 Severn Trent Serv Ops Uk Ltd,20189,571.14
"Department for Business, Energy and Industrial Strategy",The Coal Authority,30/10/2017,Minewater Sludge Disposal,Environment - Contract Management,19917 Severn Trent Serv Ops Uk Ltd,20189,2719.65
"Department for Business, Energy and Industrial Strategy",The Coal Authority,02/10/2017,Minewater Telecoms & Telemetry,Environment - Contract Management,British Telecommunications Plc,19592,69.84
"Department for Business, Energy and Industrial Strategy",The Coal Authority,02/10/2017,Minewater Telecoms & Telemetry,Environment - Contract Management,O2 (Uk) Limited,19527,12.5
"Department for Business, Energy and Industrial Strategy",The Coal Authority,02/10/2017,Minewater Telecoms & Telemetry,Environment - Contract Management,O2 (Uk) Limited,19528,12.5
"Department for Business, Energy and Industrial Strategy",The Coal Authority,02/10/2017,Minewater Telecoms & Telemetry,Environment - Contract Management,O2 (Uk) Limited,19529,12.5
"Department for Business, Energy and Industrial Strategy",The Coal Authority,14/10/2017,Minewater Telecoms & Telemetry,Environment - Contract Management,Vodafone Limited (Corporate),19892,207.52
"Department for Business, Energy and Industrial Strategy",The Coal Authority,24/10/2017,Minewater Telecoms & Telemetry,Environment - Contract Management,Vodafone Limited (Corporate),20147,10472.34
"Department for Business, Energy and Industrial Strategy",The Coal Authority,28/09/2017,Minewater Telecoms & Telemetry,Environment - Contract Management,Wyless Plc,19190,35
"Department for Business, Energy and Industrial Strategy",The Coal Authority,03/10/2017,Minewater Telecoms & Telemetry,Environment - Contract Management,Wyless Plc,19389,15
"Department for Business, Energy and Industrial Strategy",The Coal Authority,10/10/2017,Minewater Water Charges,Environment - Contract Management,Business Stream,19981,4655.83
"Department for Business, Energy and Industrial Strategy",The Coal Authority,26/10/2017,Minewater Water Charges,Environment - Contract Management,National Coal Mining Museum,20195,6528.59
"Department for Business, Energy and Industrial Strategy",The Coal Authority,19/10/2017,Minewater Water Charges,Environment - Contract Management,Northumbrian Water Limited,20125,-718.99
"Department for Business, Energy and Industrial Strategy",The Coal Authority,13/10/2017,Professional Subscriptions,Environment - Contract Management,Staff Expenses Control,19752,151
"Department for Business, Energy and Industrial Strategy",The Coal Authority,06/11/2017,Research & Development (Non BEIS Funded),Environment - Contract Management,ESA10 Restatement PI,20579,-100.89
"Department for Business, Energy and Industrial Strategy",The Coal Authority,06/11/2017,Research & Development (Non BEIS Funded),Environment - Contract Management,ESA10 Restatement PI,20579,-1284.04
"Department for Business, Energy and Industrial Strategy",The Coal Authority,30/09/2017,Short Term Vehicle Hire,Environment - Contract Management,Enterprise Rent A Car,19451,139.08
"Department for Business, Energy and Industrial Strategy",The Coal Authority,30/09/2017,Short Term Vehicle Hire,Environment - Contract Management,Enterprise Rent A Car,19399,23.25
"Department for Business, Energy and Industrial Strategy",The Coal Authority,30/09/2017,Short Term Vehicle Hire,Environment - Contract Management,Enterprise Rent A Car,19405,176.93
"Department for Business, Energy and Industrial Strategy",The Coal Authority,30/10/2017,Subsidence Pumping Maintenance - Other,Environment - Contract Management,19917 Severn Trent Serv Ops Uk Ltd,20189,55.67
"Department for Business, Energy and Industrial Strategy",The Coal Authority,30/10/2017,Subsidence Pumping Maintenance - Other,Environment - Contract Management,19917 Severn Trent Serv Ops Uk Ltd,20189,118.66
"Department for Business, Energy and Industrial Strategy",The Coal Authority,30/10/2017,Subsidence Pumping Maintenance - Other,Environment - Contract Management,19917 Severn Trent Serv Ops Uk Ltd,20189,95.11
"Department for Business, Energy and Industrial Strategy",The Coal Authority,30/10/2017,Subsidence Pumping Maintenance - Other,Environment - Contract Management,19917 Severn Trent Serv Ops Uk Ltd,20189,40.76
"Department for Business, Energy and Industrial Strategy",The Coal Authority,30/10/2017,Subsidence Pumping Maintenance - Other,Environment - Contract Management,19917 Severn Trent Serv Ops Uk Ltd,20189,54.35
"Department for Business, Energy and Industrial Strategy",The Coal Authority,30/10/2017,Subsidence Pumping Maintenance - Other,Environment - Contract Management,19917 Severn Trent Serv Ops Uk Ltd,20189,65.92
"Department for Business, Energy and Industrial Strategy",The Coal Authority,30/10/2017,Subsidence Pumping Maintenance - Other,Environment - Contract Management,19917 Severn Trent Serv Ops Uk Ltd,20189,166.7
"Department for Business, Energy and Industrial Strategy",The Coal Authority,30/10/2017,Subsidence Pumping Maintenance - Other,Environment - Contract Management,19917 Severn Trent Serv Ops Uk Ltd,20189,79.1
"Department for Business, Energy and Industrial Strategy",The Coal Authority,30/10/2017,Subsidence Pumping Maintenance - Other,Environment - Contract Management,19917 Severn Trent Serv Ops Uk Ltd,20189,39.55
"Department for Business, Energy and Industrial Strategy",The Coal Authority,30/10/2017,Subsidence Pumping Maintenance - Other,Environment - Contract Management,19917 Severn Trent Serv Ops Uk Ltd,20189,43.95
"Department for Business, Energy and Industrial Strategy",The Coal Authority,30/10/2017,Subsidence Pumping Maintenance - Other,Environment - Contract Management,19917 Severn Trent Serv Ops Uk Ltd,20189,68.85
"Department for Business, Energy and Industrial Strategy",The Coal Authority,30/10/2017,Subsidence Pumping Maintenance - Other,Environment - Contract Management,19917 Severn Trent Serv Ops Uk Ltd,20189,10.26
"Department for Business, Energy and Industrial Strategy",The Coal Authority,30/10/2017,Subsidence Pumping Maintenance - Other,Environment - Contract Management,19917 Severn Trent Serv Ops Uk Ltd,20189,-1501.64
"Department for Business, Energy and Industrial Strategy",The Coal Authority,30/10/2017,Subsidence Pumping Maintenance - Other,Environment - Contract Management,19917 Severn Trent Serv Ops Uk Ltd,20189,2398.67
"Department for Business, Energy and Industrial Strategy",The Coal Authority,11/10/2017,Subsidence Pumping Maintenance - Other,Environment - Contract Management,Danvm Drainage Commissioners,19747,2178.62
"Department for Business, Energy and Industrial Strategy",The Coal Authority,11/10/2017,Subsidence Pumping Maintenance - Other,Environment - Contract Management,Danvm Drainage Commissioners,19748,629.32
"Department for Business, Energy and Industrial Strategy",The Coal Authority,11/10/2017,Subsidence Pumping Maintenance - Other,Environment - Contract Management,Danvm Drainage Commissioners,19833,178
"Department for Business, Energy and Industrial Strategy",The Coal Authority,11/10/2017,Subsidence Pumping Maintenance - Other,Environment - Contract Management,Danvm Drainage Commissioners,19833,134.51
"Department for Business, Energy and Industrial Strategy",The Coal Authority,11/10/2017,Subsidence Pumping Maintenance - Other,Environment - Contract Management,Danvm Drainage Commissioners,19833,216.63
"Department for Business, Energy and Industrial Strategy",The Coal Authority,11/10/2017,Subsidence Pumping Maintenance - Other,Environment - Contract Management,Danvm Drainage Commissioners,19833,178
"Department for Business, Energy and Industrial Strategy",The Coal Authority,11/10/2017,Subsidence Pumping Maintenance - Other,Environment - Contract Management,Danvm Drainage Commissioners,19833,178
"Department for Business, Energy and Industrial Strategy",The Coal Authority,11/10/2017,Subsidence Pumping Maintenance - Other,Environment - Contract Management,Danvm Drainage Commissioners,19833,184.37
"Department for Business, Energy and Industrial Strategy",The Coal Authority,11/10/2017,Subsidence Pumping Maintenance - Other,Environment - Contract Management,Danvm Drainage Commissioners,19833,185.52
"Department for Business, Energy and Industrial Strategy",The Coal Authority,11/10/2017,Subsidence Pumping Maintenance - Other,Environment - Contract Management,Danvm Drainage Commissioners,19833,135.25
"Department for Business, Energy and Industrial Strategy",The Coal Authority,11/10/2017,Subsidence Pumping Maintenance - Other,Environment - Contract Management,Danvm Drainage Commissioners,19833,260.94
"Department for Business, Energy and Industrial Strategy",The Coal Authority,11/10/2017,Subsidence Pumping Maintenance - Other,Environment - Contract Management,Danvm Drainage Commissioners,19833,209.25
"Department for Business, Energy and Industrial Strategy",The Coal Authority,11/10/2017,Subsidence Pumping Maintenance - Other,Environment - Contract Management,Danvm Drainage Commissioners,19833,182
"Department for Business, Energy and Industrial Strategy",The Coal Authority,11/10/2017,Subsidence Pumping Maintenance - Other,Environment - Contract Management,Danvm Drainage Commissioners,19833,538.35
"Department for Business, Energy and Industrial Strategy",The Coal Authority,11/10/2017,Subsidence Pumping Maintenance - Other,Environment - Contract Management,Danvm Drainage Commissioners,19833,91.75
"Department for Business, Energy and Industrial Strategy",The Coal Authority,11/10/2017,Subsidence Pumping Maintenance - Other,Environment - Contract Management,Danvm Drainage Commissioners,19833,178
"Department for Business, Energy and Industrial Strategy",The Coal Authority,11/10/2017,Subsidence Pumping Maintenance - Other,Environment - Contract Management,Danvm Drainage Commissioners,19833,178
"Department for Business, Energy and Industrial Strategy",The Coal Authority,11/10/2017,Subsidence Pumping Maintenance - Other,Environment - Contract Management,Danvm Drainage Commissioners,19833,187.29
"Department for Business, Energy and Industrial Strategy",The Coal Authority,11/10/2017,Subsidence Pumping Maintenance - Other,Environment - Contract Management,Danvm Drainage Commissioners,19833,333.82
"Department for Business, Energy and Industrial Strategy",The Coal Authority,11/10/2017,Subsidence Pumping Maintenance - Other,Environment - Contract Management,Danvm Drainage Commissioners,19833,178
"Department for Business, Energy and Industrial Strategy",The Coal Authority,11/10/2017,Subsidence Pumping Maintenance - Other,Environment - Contract Management,Danvm Drainage Commissioners,19833,23.73
"Department for Business, Energy and Industrial Strategy",The Coal Authority,11/10/2017,Subsidence Pumping Maintenance - Other,Environment - Contract Management,Danvm Drainage Commissioners,19833,178
"Department for Business, Energy and Industrial Strategy",The Coal Authority,11/10/2017,Subsidence Pumping Maintenance - Other,Environment - Contract Management,Danvm Drainage Commissioners,19833,179.16
"Department for Business, Energy and Industrial Strategy",The Coal Authority,11/10/2017,Subsidence Pumping Maintenance - Other,Environment - Contract Management,Danvm Drainage Commissioners,19833,133.5
"Department for Business, Energy and Industrial Strategy",The Coal Authority,11/10/2017,Subsidence Pumping Maintenance - Other,Environment - Contract Management,Danvm Drainage Commissioners,19833,317.1
"Department for Business, Energy and Industrial Strategy",The Coal Authority,11/10/2017,Subsidence Pumping Maintenance - Other,Environment - Contract Management,Danvm Drainage Commissioners,19833,133.5
"Department for Business, Energy and Industrial Strategy",The Coal Authority,11/10/2017,Subsidence Pumping Maintenance - Other,Environment - Contract Management,Danvm Drainage Commissioners,19833,158.32
"Department for Business, Energy and Industrial Strategy",The Coal Authority,11/10/2017,Subsidence Pumping Maintenance - Other,Environment - Contract Management,Danvm Drainage Commissioners,19833,183.5
"Department for Business, Energy and Industrial Strategy",The Coal Authority,11/10/2017,Subsidence Pumping Maintenance - Other,Environment - Contract Management,Danvm Drainage Commissioners,19833,178
"Department for Business, Energy and Industrial Strategy",The Coal Authority,11/10/2017,Subsidence Pumping Maintenance - Other,Environment - Contract Management,Danvm Drainage Commissioners,19833,183.5
"Department for Business, Energy and Industrial Strategy",The Coal Authority,11/10/2017,Subsidence Pumping Maintenance - Other,Environment - Contract Management,Danvm Drainage Commissioners,19833,184.08
"Department for Business, Energy and Industrial Strategy",The Coal Authority,11/10/2017,Subsidence Pumping Maintenance - Other,Environment - Contract Management,Danvm Drainage Commissioners,19833,178
"Department for Business, Energy and Industrial Strategy",The Coal Authority,13/10/2017,Subsidence Pumping Maintenance - Other,Environment - Contract Management,Danvm Drainage Commissioners,19821,63.43
"Department for Business, Energy and Industrial Strategy",The Coal Authority,13/10/2017,Subsidence Pumping Maintenance - Other,Environment - Contract Management,Danvm Drainage Commissioners,19821,387.6
"Department for Business, Energy and Industrial Strategy",The Coal Authority,13/10/2017,Subsidence Pumping Maintenance - Other,Environment - Contract Management,Danvm Drainage Commissioners,19821,214.69
"Department for Business, Energy and Industrial Strategy",The Coal Authority,13/10/2017,Subsidence Pumping Maintenance - Other,Environment - Contract Management,Danvm Drainage Commissioners,19821,70.48
"Department for Business, Energy and Industrial Strategy",The Coal Authority,13/10/2017,Subsidence Pumping Maintenance - Other,Environment - Contract Management,Danvm Drainage Commissioners,19821,14.08
"Department for Business, Energy and Industrial Strategy",The Coal Authority,13/10/2017,Subsidence Pumping Maintenance - Other,Environment - Contract Management,Danvm Drainage Commissioners,19821,21.14
"Department for Business, Energy and Industrial Strategy",The Coal Authority,13/10/2017,Subsidence Pumping Maintenance - Other,Environment - Contract Management,Danvm Drainage Commissioners,19821,287.69
"Department for Business, Energy and Industrial Strategy",The Coal Authority,12/10/2017,Subsidence Pumping Maintenance - Other,Environment - Contract Management,Doncaster East I D B,19825,10.19
"Department for Business, Energy and Industrial Strategy",The Coal Authority,12/10/2017,Subsidence Pumping Maintenance - Other,Environment - Contract Management,Doncaster East I D B,19825,106.8
"Department for Business, Energy and Industrial Strategy",The Coal Authority,12/10/2017,Subsidence Pumping Maintenance - Other,Environment - Contract Management,Doncaster East I D B,19825,178
"Department for Business, Energy and Industrial Strategy",The Coal Authority,12/10/2017,Subsidence Pumping Maintenance - Other,Environment - Contract Management,Doncaster East I D B,19825,178.58
"Department for Business, Energy and Industrial Strategy",The Coal Authority,12/10/2017,Subsidence Pumping Maintenance - Other,Environment - Contract Management,Doncaster East I D B,19825,260.94
"Department for Business, Energy and Industrial Strategy",The Coal Authority,12/10/2017,Subsidence Pumping Maintenance - Other,Environment - Contract Management,Doncaster East I D B,19825,140
"Department for Business, Energy and Industrial Strategy",The Coal Authority,12/10/2017,Subsidence Pumping Maintenance - Other,Environment - Contract Management,Doncaster East I D B,19825,202.33
"Department for Business, Energy and Industrial Strategy",The Coal Authority,12/10/2017,Subsidence Pumping Maintenance - Other,Environment - Contract Management,Doncaster East I D B,19825,10.22
"Department for Business, Energy and Industrial Strategy",The Coal Authority,12/10/2017,Subsidence Pumping Maintenance - Other,Environment - Contract Management,Doncaster East I D B,19825,5.52
"Department for Business, Energy and Industrial Strategy",The Coal Authority,12/10/2017,Subsidence Pumping Maintenance - Other,Environment - Contract Management,Doncaster East I D B,19825,178.58
"Department for Business, Energy and Industrial Strategy",The Coal Authority,12/10/2017,Subsidence Pumping Maintenance - Other,Environment - Contract Management,Doncaster East I D B,19825,112.5
"Department for Business, Energy and Industrial Strategy",The Coal Authority,12/10/2017,Subsidence Pumping Maintenance - Other,Environment - Contract Management,Doncaster East I D B,19825,482.67
"Department for Business, Energy and Industrial Strategy",The Coal Authority,12/10/2017,Subsidence Pumping Maintenance - Other,Environment - Contract Management,Doncaster East I D B,19825,1416.44
"Department for Business, Energy and Industrial Strategy",The Coal Authority,10/10/2017,Subsidence Pumping Maintenance - Power,Environment - Contract Management,Black Drain Drainage Board,19633,141.2
"Department for Business, Energy and Industrial Strategy",The Coal Authority,05/10/2017,Subsidence Pumping Maintenance - Power,Environment - Contract Management,British Gas Business,19596,845.26
"Department for Business, Energy and Industrial Strategy",The Coal Authority,11/10/2017,Subsidence Pumping Maintenance - Power,Environment - Contract Management,British Gas Business,19836,33.58
"Department for Business, Energy and Industrial Strategy",The Coal Authority,11/10/2017,Subsidence Pumping Maintenance - Power,Environment - Contract Management,British Gas Business,19836,28.56
"Department for Business, Energy and Industrial Strategy",The Coal Authority,11/10/2017,Subsidence Pumping Maintenance - Power,Environment - Contract Management,British Gas Business,19836,47.29
"Department for Business, Energy and Industrial Strategy",The Coal Authority,11/10/2017,Subsidence Pumping Maintenance - Power,Environment - Contract Management,British Gas Business,19836,13.14
"Department for Business, Energy and Industrial Strategy",The Coal Authority,11/10/2017,Subsidence Pumping Maintenance - Power,Environment - Contract Management,British Gas Business,19836,177.91
"Department for Business, Energy and Industrial Strategy",The Coal Authority,11/10/2017,Subsidence Pumping Maintenance - Power,Environment - Contract Management,British Gas Business,19836,49.25
"Department for Business, Energy and Industrial Strategy",The Coal Authority,11/10/2017,Subsidence Pumping Maintenance - Power,Environment - Contract Management,British Gas Business,20109,8.62
"Department for Business, Energy and Industrial Strategy",The Coal Authority,11/10/2017,Subsidence Pumping Maintenance - Power,Environment - Contract Management,British Gas Business,20109,49.81
"Department for Business, Energy and Industrial Strategy",The Coal Authority,11/10/2017,Subsidence Pumping Maintenance - Power,Environment - Contract Management,British Gas Business,20109,43.96
"Department for Business, Energy and Industrial Strategy",The Coal Authority,11/10/2017,Subsidence Pumping Maintenance - Power,Environment - Contract Management,British Gas Business,20109,180.71
"Department for Business, Energy and Industrial Strategy",The Coal Authority,11/10/2017,Subsidence Pumping Maintenance - Power,Environment - Contract Management,British Gas Business,20109,328.39
"Department for Business, Energy and Industrial Strategy",The Coal Authority,11/10/2017,Subsidence Pumping Maintenance - Power,Environment - Contract Management,British Gas Business,20109,48.08
"Department for Business, Energy and Industrial Strategy",The Coal Authority,11/10/2017,Subsidence Pumping Maintenance - Power,Environment - Contract Management,British Gas Business,20109,41.19
"Department for Business, Energy and Industrial Strategy",The Coal Authority,11/10/2017,Subsidence Pumping Maintenance - Power,Environment - Contract Management,British Gas Business,20109,504.04
"Department for Business, Energy and Industrial Strategy",The Coal Authority,11/10/2017,Subsidence Pumping Maintenance - Power,Environment - Contract Management,British Gas Business,20109,89.15
"Department for Business, Energy and Industrial Strategy",The Coal Authority,11/10/2017,Subsidence Pumping Maintenance - Power,Environment - Contract Management,British Gas Business,20109,14.01
"Department for Business, Energy and Industrial Strategy",The Coal Authority,11/10/2017,Subsidence Pumping Maintenance - Power,Environment - Contract Management,British Gas Business,20109,150.43
"Department for Business, Energy and Industrial Strategy",The Coal Authority,11/10/2017,Subsidence Pumping Maintenance - Power,Environment - Contract Management,British Gas Business,20109,476.11
"Department for Business, Energy and Industrial Strategy",The Coal Authority,11/10/2017,Subsidence Pumping Maintenance - Power,Environment - Contract Management,British Gas Business,20109,311.57
"Department for Business, Energy and Industrial Strategy",The Coal Authority,11/10/2017,Subsidence Pumping Maintenance - Power,Environment - Contract Management,British Gas Business,20110,-27199.43
"Department for Business, Energy and Industrial Strategy",The Coal Authority,11/10/2017,Subsidence Pumping Maintenance - Power,Environment - Contract Management,Danvm Drainage Commissioners,19812,119.69
"Department for Business, Energy and Industrial Strategy",The Coal Authority,11/10/2017,Subsidence Pumping Maintenance - Power,Environment - Contract Management,Danvm Drainage Commissioners,19812,37.97
"Department for Business, Energy and Industrial Strategy",The Coal Authority,11/10/2017,Subsidence Pumping Maintenance - Power,Environment - Contract Management,Danvm Drainage Commissioners,19812,358.38
"Department for Business, Energy and Industrial Strategy",The Coal Authority,11/10/2017,Subsidence Pumping Maintenance - Power,Environment - Contract Management,Danvm Drainage Commissioners,19812,93.62
"Department for Business, Energy and Industrial Strategy",The Coal Authority,11/10/2017,Subsidence Pumping Maintenance - Power,Environment - Contract Management,Danvm Drainage Commissioners,19812,115.49
"Department for Business, Energy and Industrial Strategy",The Coal Authority,11/10/2017,Subsidence Pumping Maintenance - Power,Environment - Contract Management,Danvm Drainage Commissioners,19812,99.13
"Department for Business, Energy and Industrial Strategy",The Coal Authority,11/10/2017,Subsidence Pumping Maintenance - Power,Environment - Contract Management,Danvm Drainage Commissioners,19812,123.36
"Department for Business, Energy and Industrial Strategy",The Coal Authority,11/10/2017,Subsidence Pumping Maintenance - Power,Environment - Contract Management,Doncaster East I D B,19817,20.24
"Department for Business, Energy and Industrial Strategy",The Coal Authority,11/10/2017,Subsidence Pumping Maintenance - Power,Environment - Contract Management,Doncaster East I D B,19817,72.77
"Department for Business, Energy and Industrial Strategy",The Coal Authority,11/10/2017,Subsidence Pumping Maintenance - Power,Environment - Contract Management,Doncaster East I D B,19817,521.69
"Department for Business, Energy and Industrial Strategy",The Coal Authority,11/10/2017,Subsidence Pumping Maintenance - Power,Environment - Contract Management,Doncaster East I D B,19817,260.04
"Department for Business, Energy and Industrial Strategy",The Coal Authority,11/10/2017,Subsidence Pumping Maintenance - Power,Environment - Contract Management,Doncaster East I D B,19816,-373.86
"Department for Business, Energy and Industrial Strategy",The Coal Authority,11/10/2017,Subsidence Pumping Maintenance - Power,Environment - Contract Management,Doncaster East I D B,19816,-11.06
"Department for Business, Energy and Industrial Strategy",The Coal Authority,05/10/2017,Subsidence Pumping Maintenance - Power,Environment - Contract Management,Edf Energy,20115,937.62
"Department for Business, Energy and Industrial Strategy",The Coal Authority,05/10/2017,Subsidence Pumping Maintenance - Power,Environment - Contract Management,Edf Energy,20115,321.32
"Department for Business, Energy and Industrial Strategy",The Coal Authority,05/10/2017,Subsidence Pumping Maintenance - Power,Environment - Contract Management,Edf Energy,20115,984.13
"Department for Business, Energy and Industrial Strategy",The Coal Authority,05/10/2017,Subsidence Pumping Maintenance - Power,Environment - Contract Management,Edf Energy,20115,8742.7
"Department for Business, Energy and Industrial Strategy",The Coal Authority,05/10/2017,Subsidence Pumping Maintenance - Power,Environment - Contract Management,Edf Energy,20115,2609.86
"Department for Business, Energy and Industrial Strategy",The Coal Authority,05/10/2017,Subsidence Pumping Maintenance - Power,Environment - Contract Management,Edf Energy,20115,172.4
"Department for Business, Energy and Industrial Strategy",The Coal Authority,05/07/2017,Subsistence Allowances,Environment - Contract Management,Government Procurement Card,20113,7
"Department for Business, Energy and Industrial Strategy",The Coal Authority,05/07/2017,Subsistence Allowances,Environment - Contract Management,Government Procurement Card,20113,2.47
"Department for Business, Energy and Industrial Strategy",The Coal Authority,05/07/2017,Subsistence Allowances,Environment - Contract Management,Government Procurement Card,20113,4.52
"Department for Business, Energy and Industrial Strategy",The Coal Authority,05/07/2017,Subsistence Allowances,Environment - Contract Management,Government Procurement Card,20113,7
"Department for Business, Energy and Industrial Strategy",The Coal Authority,05/07/2017,Subsistence Allowances,Environment - Contract Management,Government Procurement Card,20113,4.53
"Department for Business, Energy and Industrial Strategy",The Coal Authority,05/07/2017,Subsistence Allowances,Environment - Contract Management,Government Procurement Card,20113,2.47
"Department for Business, Energy and Industrial Strategy",The Coal Authority,06/07/2017,Subsistence Allowances,Environment - Contract Management,Government Procurement Card,20113,3.05
"Department for Business, Energy and Industrial Strategy",The Coal Authority,06/07/2017,Subsistence Allowances,Environment - Contract Management,Government Procurement Card,20113,3.05
"Department for Business, Energy and Industrial Strategy",The Coal Authority,26/09/2017,Subsistence Allowances,Environment - Contract Management,Staff Expenses Control,19752,12.77
"Department for Business, Energy and Industrial Strategy",The Coal Authority,26/09/2017,Subsistence Allowances,Environment - Contract Management,Staff Expenses Control,19752,7.91
"Department for Business, Energy and Industrial Strategy",The Coal Authority,26/09/2017,Subsistence Allowances,Environment - Contract Management,Staff Expenses Control,19752,9.58
"Department for Business, Energy and Industrial Strategy",The Coal Authority,27/10/2017,Temporary Contractors,Environment - Contract Management,Key Personnel Solutions Ltd,20197,339.27
"Department for Business, Energy and Industrial Strategy",The Coal Authority,30/10/2017,CY - Non-coal Minewater - Additions,Environment - DEFRA - EA Programme,19917 Severn Trent Serv Ops Uk Ltd,20189,3606.29
"Department for Business, Energy and Industrial Strategy",The Coal Authority,28/09/2017,CY - Non-coal Minewater - Additions,Environment - DEFRA - EA Programme,Cdm Smith,19330,3197.96
"Department for Business, Energy and Industrial Strategy",The Coal Authority,22/06/2017,Fares - Public Transport,Environment - DEFRA - EA Programme,Staff Expenses Control,19934,1.7
"Department for Business, Energy and Industrial Strategy",The Coal Authority,16/08/2017,Fares - Public Transport,Environment - DEFRA - EA Programme,Staff Expenses Control,19137,13.5
"Department for Business, Energy and Industrial Strategy",The Coal Authority,21/07/2017,Fuel (Vehicle),Environment - DEFRA - EA Programme,Government Procurement Card,20113,55.37
"Department for Business, Energy and Industrial Strategy",The Coal Authority,30/09/2017,Hotel & Accommodation,Environment - DEFRA - EA Programme,Redfern Travel Ltd,19746,613.58
"Department for Business, Energy and Industrial Strategy",The Coal Authority,12/07/2017,Incidentals,Environment - DEFRA - EA Programme,Government Procurement Card,20113,11.5
"Department for Business, Energy and Industrial Strategy",The Coal Authority,28/09/2017,Legal - Property Title Search,Environment - DEFRA - EA Programme,Land Registry,19648,108
"Department for Business, Energy and Industrial Strategy",The Coal Authority,22/06/2017,Mileage Payments,Environment - DEFRA - EA Programme,Staff Expenses Control,19934,18.22
"Department for Business, Energy and Industrial Strategy",The Coal Authority,24/10/2017,Minewater Chemicals - Operational Sites,Environment - DEFRA - EA Programme,Veolia ES (UK) Ltd,20017,13358.75
"Department for Business, Energy and Industrial Strategy",The Coal Authority,30/10/2017,Minewater Contractor Add. Task Order - Ops Site,Environment - DEFRA - EA Programme,19917 Severn Trent Serv Ops Uk Ltd,20189,64.01
"Department for Business, Energy and Industrial Strategy",The Coal Authority,30/10/2017,Minewater Contractor Add. Task Order - Ops Site,Environment - DEFRA - EA Programme,19917 Severn Trent Serv Ops Uk Ltd,20189,-1544.73
"Department for Business, Energy and Industrial Strategy",The Coal Authority,30/10/2017,Minewater Contractor Add. Task Order - Ops Site,Environment - DEFRA - EA Programme,19917 Severn Trent Serv Ops Uk Ltd,20189,22756.38
"Department for Business, Energy and Industrial Strategy",The Coal Authority,30/10/2017,Minewater Contractor Add. Task Order - Ops Site,Environment - DEFRA - EA Programme,19917 Severn Trent Serv Ops Uk Ltd,20189,16343.16
"Department for Business, Energy and Industrial Strategy",The Coal Authority,24/10/2017,Minewater Contractor Add. Task Order - Ops Site,Environment - DEFRA - EA Programme,Veolia ES (UK) Ltd,20017,33824.87
"Department for Business, Energy and Industrial Strategy",The Coal Authority,30/10/2017,Minewater Contractor Maint. Visits - Ops Site,Environment - DEFRA - EA Programme,19917 Severn Trent Serv Ops Uk Ltd,20189,3872.11
"Department for Business, Energy and Industrial Strategy",The Coal Authority,30/10/2017,Minewater Contractor Maint. Visits - Ops Site,Environment - DEFRA - EA Programme,19917 Severn Trent Serv Ops Uk Ltd,20189,33.33
"Department for Business, Energy and Industrial Strategy",The Coal Authority,30/10/2017,Minewater Contractor Maint. Visits - Ops Site,Environment - DEFRA - EA Programme,19917 Severn Trent Serv Ops Uk Ltd,20189,38.47
"Department for Business, Energy and Industrial Strategy",The Coal Authority,30/10/2017,Minewater Contractor Maint. Visits - Ops Site,Environment - DEFRA - EA Programme,19917 Severn Trent Serv Ops Uk Ltd,20189,29.08
"Department for Business, Energy and Industrial Strategy",The Coal Authority,30/10/2017,Minewater Contractor Maint. Visits - Ops Site,Environment - DEFRA - EA Programme,19917 Severn Trent Serv Ops Uk Ltd,20189,23.51
"Department for Business, Energy and Industrial Strategy",The Coal Authority,09/10/2017,Minewater Feasibility / Scoping,Environment - DEFRA - EA Programme,WSP UK Ltd,19626,7637.38
"Department for Business, Energy and Industrial Strategy",The Coal Authority,25/10/2017,Minewater Framework - Consultancy,Environment - DEFRA - EA Programme,Atkins Limited,20028,3898
"Department for Business, Energy and Industrial Strategy",The Coal Authority,30/10/2017,Minewater Monitoring & Flow Measurement,Environment - DEFRA - EA Programme,19917 Severn Trent Serv Ops Uk Ltd,20189,7511.26
"Department for Business, Energy and Industrial Strategy",The Coal Authority,30/10/2017,Minewater Monitoring & Flow Measurement,Environment - DEFRA - EA Programme,19917 Severn Trent Serv Ops Uk Ltd,20189,33.73
"Department for Business, Energy and Industrial Strategy",The Coal Authority,30/10/2017,Minewater Monitoring & Flow Measurement,Environment - DEFRA - EA Programme,19917 Severn Trent Serv Ops Uk Ltd,20189,25.64
"Department for Business, Energy and Industrial Strategy",The Coal Authority,30/10/2017,Minewater Monitoring & Flow Measurement,Environment - DEFRA - EA Programme,19917 Severn Trent Serv Ops Uk Ltd,20189,36.55
"Department for Business, Energy and Industrial Strategy",The Coal Authority,30/10/2017,Minewater Monitoring & Flow Measurement,Environment - DEFRA - EA Programme,19917 Severn Trent Serv Ops Uk Ltd,20189,88.84
"Department for Business, Energy and Industrial Strategy",The Coal Authority,05/10/2017,Minewater Power Costs,Environment - DEFRA - EA Programme,Edf Energy,20115,20272.72
"Department for Business, Energy and Industrial Strategy",The Coal Authority,24/10/2017,Minewater Power Costs,Environment - DEFRA - EA Programme,Veolia ES (UK) Ltd,20017,337.45
"Department for Business, Energy and Industrial Strategy",The Coal Authority,24/10/2017,Minewater Power Costs,Environment - DEFRA - EA Programme,Veolia ES (UK) Ltd,20016,-2517.85
"Department for Business, Energy and Industrial Strategy",The Coal Authority,31/10/2017,Minewater Rent,Environment - DEFRA - EA Programme,Wharton Estates,20144,8000
"Department for Business, Energy and Industrial Strategy",The Coal Authority,31/10/2017,Minewater Rent,Environment - DEFRA - EA Programme,Wharton Estates,20145,925
"Department for Business, Energy and Industrial Strategy",The Coal Authority,30/10/2017,Minewater Sampling - 'Non-operational' Sites,Environment - DEFRA - EA Programme,19917 Severn Trent Serv Ops Uk Ltd,20189,766.39
"Department for Business, Energy and Industrial Strategy",The Coal Authority,30/10/2017,Minewater Sampling - 'Non-operational' Sites,Environment - DEFRA - EA Programme,19917 Severn Trent Serv Ops Uk Ltd,20189,16.47
"Department for Business, Energy and Industrial Strategy",The Coal Authority,30/10/2017,Minewater Sampling - 'Non-operational' Sites,Environment - DEFRA - EA Programme,19917 Severn Trent Serv Ops Uk Ltd,20189,12.82
"Department for Business, Energy and Industrial Strategy",The Coal Authority,30/10/2017,Minewater Sampling - 'Non-operational' Sites,Environment - DEFRA - EA Programme,19917 Severn Trent Serv Ops Uk Ltd,20189,0.66
"Department for Business, Energy and Industrial Strategy",The Coal Authority,30/10/2017,Minewater Sampling - 'Non-operational' Sites,Environment - DEFRA - EA Programme,19917 Severn Trent Serv Ops Uk Ltd,20189,12.18
"Department for Business, Energy and Industrial Strategy",The Coal Authority,24/10/2017,Minewater Sludge Disposal,Environment - DEFRA - EA Programme,Veolia ES (UK) Ltd,20017,27083.34
"Department for Business, Energy and Industrial Strategy",The Coal Authority,29/09/2017,Research & Development (Non BEIS Funded),Environment - DEFRA - EA Programme,Newcastle University,19287,23326
"Department for Business, Energy and Industrial Strategy",The Coal Authority,30/09/2017,Short Term Vehicle Hire,Environment - DEFRA - EA Programme,Enterprise Rent A Car,19460,39.25
"Department for Business, Energy and Industrial Strategy",The Coal Authority,12/07/2017,Subsistence Allowances,Environment - DEFRA - EA Programme,Government Procurement Card,20113,4.54
"Department for Business, Energy and Industrial Strategy",The Coal Authority,12/07/2017,Subsistence Allowances,Environment - DEFRA - EA Programme,Government Procurement Card,20113,3
"Department for Business, Energy and Industrial Strategy",The Coal Authority,20/07/2017,Subsistence Allowances,Environment - DEFRA - EA Programme,Government Procurement Card,20113,25.12
"Department for Business, Energy and Industrial Strategy",The Coal Authority,21/07/2017,Subsistence Allowances,Environment - DEFRA - EA Programme,Government Procurement Card,20113,6.91
"Department for Business, Energy and Industrial Strategy",The Coal Authority,21/07/2017,Subsistence Allowances,Environment - DEFRA - EA Programme,Government Procurement Card,20113,2.79
"Department for Business, Energy and Industrial Strategy",The Coal Authority,16/08/2017,Subsistence Allowances,Environment - DEFRA - EA Programme,Staff Expenses Control,19137,12.9
"Department for Business, Energy and Industrial Strategy",The Coal Authority,17/08/2017,Subsistence Allowances,Environment - DEFRA - EA Programme,Staff Expenses Control,19137,5.35
"Department for Business, Energy and Industrial Strategy",The Coal Authority,17/08/2017,Subsistence Allowances,Environment - DEFRA - EA Programme,Staff Expenses Control,19137,3
"Department for Business, Energy and Industrial Strategy",The Coal Authority,05/07/2017,Business Entertainment / Hospitality,Environment - DEFRA - LEP Programme,Government Procurement Card,20113,86.18
"Department for Business, Energy and Industrial Strategy",The Coal Authority,07/07/2017,Business Meetings,Environment - DEFRA - LEP Programme,Government Procurement Card,20113,4.69
"Department for Business, Energy and Industrial Strategy",The Coal Authority,08/07/2017,Business Meetings,Environment - DEFRA - LEP Programme,Government Procurement Card,20113,2.45
"Department for Business, Energy and Industrial Strategy",The Coal Authority,08/07/2017,Business Meetings,Environment - DEFRA - LEP Programme,Government Procurement Card,20113,2.45
"Department for Business, Energy and Industrial Strategy",The Coal Authority,08/07/2017,Business Meetings,Environment - DEFRA - LEP Programme,Government Procurement Card,20113,58.8
"Department for Business, Energy and Industrial Strategy",The Coal Authority,08/07/2017,Business Meetings,Environment - DEFRA - LEP Programme,Government Procurement Card,20113,2.45
"Department for Business, Energy and Industrial Strategy",The Coal Authority,08/07/2017,Business Meetings,Environment - DEFRA - LEP Programme,Government Procurement Card,20113,2.45
"Department for Business, Energy and Industrial Strategy",The Coal Authority,02/10/2017,CY - Non-coal Minewater - Additions,Environment - DEFRA - LEP Programme,Atkins Limited,19155,813.12
"Department for Business, Energy and Industrial Strategy",The Coal Authority,06/10/2017,CY - Non-coal Minewater - Additions,Environment - DEFRA - LEP Programme,J N Bentley Limited,19611,61056.24
"Department for Business, Energy and Industrial Strategy",The Coal Authority,06/10/2017,CY - Non-coal Minewater - Additions,Environment - DEFRA - LEP Programme,J N Bentley Limited,19612,48184.41
"Department for Business, Energy and Industrial Strategy",The Coal Authority,23/10/2017,CY - Non-coal Minewater - Additions,Environment - DEFRA - LEP Programme,J N Bentley Limited,20010,107056.23
"Department for Business, Energy and Industrial Strategy",The Coal Authority,23/10/2017,CY - Non-coal Minewater - Additions,Environment - DEFRA - LEP Programme,J N Bentley Limited,20011,172521.48
"Department for Business, Energy and Industrial Strategy",The Coal Authority,23/10/2017,CY - Non-coal Minewater - Additions,Environment - DEFRA - LEP Programme,J N Bentley Limited,20014,52166.6
"Department for Business, Energy and Industrial Strategy",The Coal Authority,02/10/2017,CY - Non-coal Minewater - Additions,Environment - DEFRA - LEP Programme,Tyne Rivers Trust,19296,4570
"Department for Business, Energy and Industrial Strategy",The Coal Authority,06/10/2017,CY - Non-coal Minewater - Additions,Environment - DEFRA - LEP Programme,Wilson Sherriff Ltd,19808,1374.5
"Department for Business, Energy and Industrial Strategy",The Coal Authority,06/10/2017,CY - Non-coal Minewater - Additions,Environment - DEFRA - LEP Programme,Wilson Sherriff Ltd,19809,4562.25
"Department for Business, Energy and Industrial Strategy",The Coal Authority,29/09/2017,Fuel (Vehicle),Environment - DEFRA - LEP Programme,Staff Expenses Control,19934,35.24
"Department for Business, Energy and Industrial Strategy",The Coal Authority,10/10/2017,Fuel (Vehicle),Environment - DEFRA - LEP Programme,Staff Expenses Control,19752,24.77
"Department for Business, Energy and Industrial Strategy",The Coal Authority,30/09/2017,Hotel & Accommodation,Environment - DEFRA - LEP Programme,Redfern Travel Ltd,19746,122.49
"Department for Business, Energy and Industrial Strategy",The Coal Authority,20/07/2017,Incidentals,Environment - DEFRA - LEP Programme,Government Procurement Card,20113,11.5
"Department for Business, Energy and Industrial Strategy",The Coal Authority,06/09/2017,Incidentals,Environment - DEFRA - LEP Programme,Staff Expenses Control,19137,5
"Department for Business, Energy and Industrial Strategy",The Coal Authority,28/09/2017,Legal - Property Title Search,Environment - DEFRA - LEP Programme,Land Registry,19648,18
"Department for Business, Energy and Industrial Strategy",The Coal Authority,30/10/2017,Minewater Contractor Maint. Visits - Ops Site,Environment - DEFRA - LEP Programme,19917 Severn Trent Serv Ops Uk Ltd,20189,7.69
"Department for Business, Energy and Industrial Strategy",The Coal Authority,30/10/2017,Minewater Contractor Maint. Visits - Ops Site,Environment - DEFRA - LEP Programme,19917 Severn Trent Serv Ops Uk Ltd,20189,612.09
"Department for Business, Energy and Industrial Strategy",The Coal Authority,30/10/2017,Minewater Contractor Maint. Visits - Ops Site,Environment - DEFRA - LEP Programme,19917 Severn Trent Serv Ops Uk Ltd,20189,88.3
"Department for Business, Energy and Industrial Strategy",The Coal Authority,30/10/2017,Minewater Contractor Maint. Visits - Ops Site,Environment - DEFRA - LEP Programme,19917 Severn Trent Serv Ops Uk Ltd,20189,28.42
"Department for Business, Energy and Industrial Strategy",The Coal Authority,16/10/2017,Minewater Feasibility / Scoping,Environment - DEFRA - LEP Programme,Aecom Infrastructure & Env,19865,10545
"Department for Business, Energy and Industrial Strategy",The Coal Authority,23/10/2017,Minewater Feasibility / Scoping,Environment - DEFRA - LEP Programme,Aecom Infrastructure & Env,19987,11146.16
"Department for Business, Energy and Industrial Strategy",The Coal Authority,09/10/2017,Minewater Land Option / Access Payments,Environment - DEFRA - LEP Programme,M and T F Graham,19563,200
"Department for Business, Energy and Industrial Strategy",The Coal Authority,30/10/2017,Minewater Monitoring & Flow Measurement,Environment - DEFRA - LEP Programme,19917 Severn Trent Serv Ops Uk Ltd,20189,7.69
"Department for Business, Energy and Industrial Strategy",The Coal Authority,30/10/2017,Minewater Monitoring & Flow Measurement,Environment - DEFRA - LEP Programme,19917 Severn Trent Serv Ops Uk Ltd,20189,327.47
"Department for Business, Energy and Industrial Strategy",The Coal Authority,30/10/2017,Minewater Monitoring & Flow Measurement,Environment - DEFRA - LEP Programme,19917 Severn Trent Serv Ops Uk Ltd,20189,109.19
"Department for Business, Energy and Industrial Strategy",The Coal Authority,30/10/2017,Minewater Monitoring & Flow Measurement,Environment - DEFRA - LEP Programme,19917 Severn Trent Serv Ops Uk Ltd,20189,31.63
"Department for Business, Energy and Industrial Strategy",The Coal Authority,30/10/2017,Minewater Sampling - 'Non-operational' Sites,Environment - DEFRA - LEP Programme,19917 Severn Trent Serv Ops Uk Ltd,20189,7.91
"Department for Business, Energy and Industrial Strategy",The Coal Authority,30/10/2017,Minewater Sampling - 'Non-operational' Sites,Environment - DEFRA - LEP Programme,19917 Severn Trent Serv Ops Uk Ltd,20189,225.02
"Department for Business, Energy and Industrial Strategy",The Coal Authority,30/10/2017,Minewater Sampling - 'Non-operational' Sites,Environment - DEFRA - LEP Programme,19917 Severn Trent Serv Ops Uk Ltd,20189,81.5
"Department for Business, Energy and Industrial Strategy",The Coal Authority,30/10/2017,Minewater Sampling - 'Non-operational' Sites,Environment - DEFRA - LEP Programme,19917 Severn Trent Serv Ops Uk Ltd,20189,13.89
"Department for Business, Energy and Industrial Strategy",The Coal Authority,30/09/2017,Short Term Vehicle Hire,Environment - DEFRA - LEP Programme,Enterprise Rent A Car,19459,53.5
"Department for Business, Energy and Industrial Strategy",The Coal Authority,30/09/2017,Short Term Vehicle Hire,Environment - DEFRA - LEP Programme,Enterprise Rent A Car,19430,51.3
"Department for Business, Energy and Industrial Strategy",The Coal Authority,08/07/2017,Subsistence Allowances,Environment - DEFRA - LEP Programme,Government Procurement Card,20113,32.5
"Department for Business, Energy and Industrial Strategy",The Coal Authority,08/07/2017,Subsistence Allowances,Environment - DEFRA - LEP Programme,Government Procurement Card,20113,32.5
"Department for Business, Energy and Industrial Strategy",The Coal Authority,08/07/2017,Subsistence Allowances,Environment - DEFRA - LEP Programme,Government Procurement Card,20113,32.5
"Department for Business, Energy and Industrial Strategy",The Coal Authority,08/07/2017,Subsistence Allowances,Environment - DEFRA - LEP Programme,Government Procurement Card,20113,32.5
"Department for Business, Energy and Industrial Strategy",The Coal Authority,02/08/2017,Subsistence Allowances,Environment - DEFRA - LEP Programme,Government Procurement Card,20113,5.35
"Department for Business, Energy and Industrial Strategy",The Coal Authority,02/08/2017,Subsistence Allowances,Environment - DEFRA - LEP Programme,Government Procurement Card,20113,5.8
"Department for Business, Energy and Industrial Strategy",The Coal Authority,02/08/2017,Subsistence Allowances,Environment - DEFRA - LEP Programme,Government Procurement Card,20113,5.5
"Department for Business, Energy and Industrial Strategy",The Coal Authority,02/08/2017,Subsistence Allowances,Environment - DEFRA - LEP Programme,Government Procurement Card,20113,9.79
"Department for Business, Energy and Industrial Strategy",The Coal Authority,02/08/2017,Subsistence Allowances,Environment - DEFRA - LEP Programme,Government Procurement Card,20113,3.85
"Department for Business, Energy and Industrial Strategy",The Coal Authority,29/09/2017,Subsistence Allowances,Environment - DEFRA - LEP Programme,Staff Expenses Control,19934,5.09
"Department for Business, Energy and Industrial Strategy",The Coal Authority,03/10/2017,Subsistence Allowances,Environment - DEFRA - LEP Programme,Staff Expenses Control,19934,14.8
"Department for Business, Energy and Industrial Strategy",The Coal Authority,10/10/2017,Subsistence Allowances,Environment - DEFRA - LEP Programme,Staff Expenses Control,19752,3.25
"Department for Business, Energy and Industrial Strategy",The Coal Authority,10/10/2017,Subsistence Allowances,Environment - DEFRA - LEP Programme,Staff Expenses Control,19752,6.55
"Department for Business, Energy and Industrial Strategy",The Coal Authority,10/10/2017,Subsistence Allowances,Environment - DEFRA - LEP Programme,Staff Expenses Control,19752,1
"Department for Business, Energy and Industrial Strategy",The Coal Authority,18/10/2017,Subsistence Allowances,Environment - DEFRA - LEP Programme,Staff Expenses Control,19934,6.55
"Department for Business, Energy and Industrial Strategy",The Coal Authority,05/09/2017,Fares - Public Transport,Environment - Innovation Concept & Feasibility,Staff Expenses Control,19934,10.2
"Department for Business, Energy and Industrial Strategy",The Coal Authority,30/09/2017,Hotel & Accommodation,Environment - Innovation Concept & Feasibility,Redfern Travel Ltd,19746,199
"Department for Business, Energy and Industrial Strategy",The Coal Authority,23/09/2017,Innovation Costs,Environment - Innovation Concept & Feasibility,H2O WEM Ltd,19777,979.2
"Department for Business, Energy and Industrial Strategy",The Coal Authority,02/10/2017,Innovation Costs,Environment - Innovation Concept & Feasibility,Soil Engineering Geoservices L,19266,1550.8
"Department for Business, Energy and Industrial Strategy",The Coal Authority,19/09/2017,Mileage Payments,Environment - Innovation Concept & Feasibility,Staff Expenses Control,19934,16
"Department for Business, Energy and Industrial Strategy",The Coal Authority,19/09/2017,Mileage Payments,Environment - Innovation Concept & Feasibility,Staff Expenses Control,19934,16
"Department for Business, Energy and Industrial Strategy",The Coal Authority,18/07/2017,Subsistence Allowances,Environment - Innovation Concept & Feasibility,Government Procurement Card,20113,16.5
"Department for Business, Energy and Industrial Strategy",The Coal Authority,09/10/2017,Temporary Contractors,Environment - Innovation Concept & Feasibility,Huxley Associates,19628,2261.63
"Department for Business, Energy and Industrial Strategy",The Coal Authority,11/10/2017,Temporary Contractors,Environment - Innovation Concept & Feasibility,Huxley Associates,19629,35.7
"Department for Business, Energy and Industrial Strategy",The Coal Authority,16/10/2017,Temporary Contractors,Environment - Innovation Concept & Feasibility,Huxley Associates,19803,2109
"Department for Business, Energy and Industrial Strategy",The Coal Authority,30/09/2017,Fares - Rail,Environment - Innovation Programme Delivery,Redfern Travel Ltd,19746,164
"Department for Business, Energy and Industrial Strategy",The Coal Authority,12/10/2017,Fares - Rail,Environment - Innovation Programme Delivery,Staff Expenses Control,19934,187.5
"Department for Business, Energy and Industrial Strategy",The Coal Authority,22/09/2017,Fuel (Vehicle),Environment - Innovation Programme Delivery,Staff Expenses Control,19533,78.65
"Department for Business, Energy and Industrial Strategy",The Coal Authority,02/10/2017,Fuel (Vehicle),Environment - Innovation Programme Delivery,Staff Expenses Control,19934,77.81
"Department for Business, Energy and Industrial Strategy",The Coal Authority,05/10/2017,Fuel (Vehicle),Environment - Innovation Programme Delivery,Staff Expenses Control,19934,46.31
"Department for Business, Energy and Industrial Strategy",The Coal Authority,31/08/2017,Innovation Costs,Environment - Innovation Programme Delivery,Carter Jonas,19580,1246.8
"Department for Business, Energy and Industrial Strategy",The Coal Authority,31/08/2017,Innovation Costs,Environment - Innovation Programme Delivery,Carter Jonas,19581,8843.36
"Department for Business, Energy and Industrial Strategy",The Coal Authority,02/10/2017,Innovation Costs,Environment - Innovation Programme Delivery,Key Industrial Equipment LImited,19475,505
"Department for Business, Energy and Industrial Strategy",The Coal Authority,04/10/2017,Innovation Costs,Environment - Innovation Programme Delivery,Key Industrial Equipment LImited,19599,190.44
"Department for Business, Energy and Industrial Strategy",The Coal Authority,27/09/2017,Mileage Payments,Environment - Innovation Programme Delivery,Staff Expenses Control,19533,4
"Department for Business, Energy and Industrial Strategy",The Coal Authority,27/09/2017,Mileage Payments,Environment - Innovation Programme Delivery,Staff Expenses Control,19533,3.93
"Department for Business, Energy and Industrial Strategy",The Coal Authority,27/09/2017,Mileage Payments,Environment - Innovation Programme Delivery,Staff Expenses Control,19533,24.49
"Department for Business, Energy and Industrial Strategy",The Coal Authority,27/09/2017,Mileage Payments,Environment - Innovation Programme Delivery,Staff Expenses Control,19533,24.38
"Department for Business, Energy and Industrial Strategy",The Coal Authority,28/09/2017,Mileage Payments,Environment - Innovation Programme Delivery,Staff Expenses Control,19533,45.45
"Department for Business, Energy and Industrial Strategy",The Coal Authority,29/09/2017,Mileage Payments,Environment - Innovation Programme Delivery,Staff Expenses Control,19533,4
"Department for Business, Energy and Industrial Strategy",The Coal Authority,29/09/2017,Mileage Payments,Environment - Innovation Programme Delivery,Staff Expenses Control,19533,3.93
"Department for Business, Energy and Industrial Strategy",The Coal Authority,10/10/2017,Mileage Payments,Environment - Innovation Programme Delivery,Staff Expenses Control,19934,8.1
"Department for Business, Energy and Industrial Strategy",The Coal Authority,11/10/2017,Mileage Payments,Environment - Innovation Programme Delivery,Staff Expenses Control,19934,8.1
"Department for Business, Energy and Industrial Strategy",The Coal Authority,16/10/2017,Mileage Payments,Environment - Innovation Programme Delivery,Staff Expenses Control,19934,24.69
"Department for Business, Energy and Industrial Strategy",The Coal Authority,16/10/2017,Mileage Payments,Environment - Innovation Programme Delivery,Staff Expenses Control,19934,24.14
"Department for Business, Energy and Industrial Strategy",The Coal Authority,17/10/2017,Mileage Payments,Environment - Innovation Programme Delivery,Staff Expenses Control,20141,10.35
"Department for Business, Energy and Industrial Strategy",The Coal Authority,17/10/2017,Mileage Payments,Environment - Innovation Programme Delivery,Staff Expenses Control,20141,24.3
"Department for Business, Energy and Industrial Strategy",The Coal Authority,17/10/2017,Mileage Payments,Environment - Innovation Programme Delivery,Staff Expenses Control,19934,0
"Department for Business, Energy and Industrial Strategy",The Coal Authority,17/10/2017,Mileage Payments,Environment - Innovation Programme Delivery,Staff Expenses Control,19934,0
"Department for Business, Energy and Industrial Strategy",The Coal Authority,25/09/2017,Research & Development (Non BEIS Funded),Environment - Innovation Programme Delivery,2H Water Technologies,19191,835.5
"Department for Business, Energy and Industrial Strategy",The Coal Authority,28/09/2017,Research & Development (Non BEIS Funded),Environment - Innovation Programme Delivery,Enduramaxx Ltd,19582,3546
"Department for Business, Energy and Industrial Strategy",The Coal Authority,06/11/2017,Research & Development (Non BEIS Funded),Environment - Innovation Programme Delivery,ESA10 Restatement PI,20579,-6295.5
"Department for Business, Energy and Industrial Strategy",The Coal Authority,06/11/2017,Research & Development (Non BEIS Funded),Environment - Innovation Programme Delivery,ESA10 Restatement PI,20579,-17415
"Department for Business, Energy and Industrial Strategy",The Coal Authority,06/11/2017,Research & Development (Non BEIS Funded),Environment - Innovation Programme Delivery,ESA10 Restatement PI,20579,-5000
"Department for Business, Energy and Industrial Strategy",The Coal Authority,06/11/2017,Research & Development (Non BEIS Funded),Environment - Innovation Programme Delivery,ESA10 Restatement PI,20579,-520
"Department for Business, Energy and Industrial Strategy",The Coal Authority,30/09/2017,Short Term Vehicle Hire,Environment - Innovation Programme Delivery,Enterprise Rent A Car,19432,80
"Department for Business, Energy and Industrial Strategy",The Coal Authority,30/09/2017,Short Term Vehicle Hire,Environment - Innovation Programme Delivery,Enterprise Rent A Car,19439,80
"Department for Business, Energy and Industrial Strategy",The Coal Authority,30/09/2017,Short Term Vehicle Hire,Environment - Innovation Programme Delivery,Enterprise Rent A Car,19402,93.75
"Department for Business, Energy and Industrial Strategy",The Coal Authority,30/09/2017,Short Term Vehicle Hire,Environment - Innovation Programme Delivery,Enterprise Rent A Car,19409,26.75
"Department for Business, Energy and Industrial Strategy",The Coal Authority,30/09/2017,Short Term Vehicle Hire,Environment - Innovation Programme Delivery,Enterprise Rent A Car,19457,100.96
"Department for Business, Energy and Industrial Strategy",The Coal Authority,22/08/2017,Staff Events,Environment - Innovation Programme Delivery,Staff Expenses Control,19137,26.82
"Department for Business, Energy and Industrial Strategy",The Coal Authority,20/09/2017,Subsistence Allowances,Environment - Innovation Programme Delivery,Staff Expenses Control,19533,1.99
"Department for Business, Energy and Industrial Strategy",The Coal Authority,20/09/2017,Subsistence Allowances,Environment - Innovation Programme Delivery,Staff Expenses Control,19533,1.65
"Department for Business, Energy and Industrial Strategy",The Coal Authority,20/09/2017,Subsistence Allowances,Environment - Innovation Programme Delivery,Staff Expenses Control,19533,1.2
"Department for Business, Energy and Industrial Strategy",The Coal Authority,20/09/2017,Subsistence Allowances,Environment - Innovation Programme Delivery,Staff Expenses Control,19533,7.6
"Department for Business, Energy and Industrial Strategy",The Coal Authority,21/09/2017,Subsistence Allowances,Environment - Innovation Programme Delivery,Staff Expenses Control,19533,3.45
"Department for Business, Energy and Industrial Strategy",The Coal Authority,02/10/2017,Subsistence Allowances,Environment - Innovation Programme Delivery,Staff Expenses Control,19934,4.01
"Department for Business, Energy and Industrial Strategy",The Coal Authority,02/10/2017,Subsistence Allowances,Environment - Innovation Programme Delivery,Staff Expenses Control,19934,7.9
"Department for Business, Energy and Industrial Strategy",The Coal Authority,02/10/2017,Subsistence Allowances,Environment - Innovation Programme Delivery,Staff Expenses Control,19934,3.55
"Department for Business, Energy and Industrial Strategy",The Coal Authority,03/10/2017,Subsistence Allowances,Environment - Innovation Programme Delivery,Staff Expenses Control,19934,3.03
"Department for Business, Energy and Industrial Strategy",The Coal Authority,03/10/2017,Subsistence Allowances,Environment - Innovation Programme Delivery,Staff Expenses Control,19934,6.63
"Department for Business, Energy and Industrial Strategy",The Coal Authority,12/10/2017,Subsistence Allowances,Environment - Innovation Programme Delivery,Staff Expenses Control,19934,11.15
"Department for Business, Energy and Industrial Strategy",The Coal Authority,16/10/2017,Subsistence Allowances,Environment - Innovation Programme Delivery,Staff Expenses Control,19934,2.5
"Department for Business, Energy and Industrial Strategy",The Coal Authority,17/10/2017,Subsistence Allowances,Environment - Innovation Programme Delivery,Staff Expenses Control,19934,8
"Department for Business, Energy and Industrial Strategy",The Coal Authority,27/09/2017,Sundry Office Expenses,Environment - Innovation Programme Delivery,Staff Expenses Control,19533,104.94
"Department for Business, Energy and Industrial Strategy",The Coal Authority,31/07/2017,Business Meetings,Environment - Management,Ransomwood Estates Ltd,19960,177.5
"Department for Business, Energy and Industrial Strategy",The Coal Authority,30/09/2017,Fares - Rail,Environment - Management,Redfern Travel Ltd,19746,245
"Department for Business, Energy and Industrial Strategy",The Coal Authority,30/09/2017,Hotel & Accommodation,Environment - Management,Redfern Travel Ltd,19746,406.28
"Department for Business, Energy and Industrial Strategy",The Coal Authority,05/10/2017,Mileage Payments,Environment - Management,Staff Expenses Control,19934,19.35
"Department for Business, Energy and Industrial Strategy",The Coal Authority,05/10/2017,Mileage Payments,Environment - Management,Staff Expenses Control,19934,19.35
"Department for Business, Energy and Industrial Strategy",The Coal Authority,30/09/2017,Short Term Vehicle Hire,Environment - Management,Enterprise Rent A Car,19448,120.47
"Department for Business, Energy and Industrial Strategy",The Coal Authority,19/07/2017,Subsistence Allowances,Environment - Management,Government Procurement Card,20113,2.75
"Department for Business, Energy and Industrial Strategy",The Coal Authority,16/05/2017,Subsistence Allowances,Environment - Management,Staff Expenses Control,19934,4.17
"Department for Business, Energy and Industrial Strategy",The Coal Authority,16/05/2017,Subsistence Allowances,Environment - Management,Staff Expenses Control,19934,4.37
"Department for Business, Energy and Industrial Strategy",The Coal Authority,06/10/2017,Training & Education,Environment - Management,9.9 World Class Performance,19602,852.91
"Department for Business, Energy and Industrial Strategy",The Coal Authority,30/09/2017,Fares - Rail,Environment - Metal Mine Build,Redfern Travel Ltd,19746,204.9
"Department for Business, Energy and Industrial Strategy",The Coal Authority,30/09/2017,Hotel & Accommodation,Environment - Metal Mine Build,Redfern Travel Ltd,19746,280.88
"Department for Business, Energy and Industrial Strategy",The Coal Authority,30/09/2017,Short Term Vehicle Hire,Environment - Metal Mine Build,Enterprise Rent A Car,19446,48.5
"Department for Business, Energy and Industrial Strategy",The Coal Authority,30/09/2017,Short Term Vehicle Hire,Environment - Metal Mine Build,Enterprise Rent A Car,19447,75.72
"Department for Business, Energy and Industrial Strategy",The Coal Authority,05/10/2017,Consultancy - Commercialisation Costs,Environment - SEPA Programme,Environmental Scientifics Grp,19478,168.2
"Department for Business, Energy and Industrial Strategy",The Coal Authority,11/10/2017,Stationery,Environment - SEPA Programme,Staff Expenses Control,19934,7
"Department for Business, Energy and Industrial Strategy",The Coal Authority,11/10/2017,Subsistence Allowances,Environment - SEPA Programme,Staff Expenses Control,19934,8.12
"Department for Business, Energy and Industrial Strategy",The Coal Authority,11/07/2017,Business Meetings,Environment - Strategic Programme Management,Government Procurement Card,20113,1123
"Department for Business, Energy and Industrial Strategy",The Coal Authority,11/07/2017,Business Meetings,Environment - Strategic Programme Management,Government Procurement Card,20113,1123
"Department for Business, Energy and Industrial Strategy",The Coal Authority,22/09/2017,Mileage Payments,Environment - Strategic Programme Management,Staff Expenses Control,19533,4.05
"Department for Business, Energy and Industrial Strategy",The Coal Authority,22/09/2017,Mileage Payments,Environment - Strategic Programme Management,Staff Expenses Control,19533,4.05
"Department for Business, Energy and Industrial Strategy",The Coal Authority,15/07/2017,Minewater Monitoring & Flow Measurement,Environment - Strategic Programme Management,Government Procurement Card,20113,179
"Department for Business, Energy and Industrial Strategy",The Coal Authority,30/09/2017,Short Term Vehicle Hire,Environment - Strategic Programme Management,Enterprise Rent A Car,19449,38.15
"Department for Business, Energy and Industrial Strategy",The Coal Authority,30/09/2017,Short Term Vehicle Hire,Environment - Strategic Programme Management,Enterprise Rent A Car,19398,51.11
"Department for Business, Energy and Industrial Strategy",The Coal Authority,05/10/2017,Training & Education,Environment - Strategic Programme Management,The Knowledge Academy Ltd,19655,989
"Department for Business, Energy and Industrial Strategy",The Coal Authority,25/07/2017,Business Entertainment / Hospitality,Environment - Technical,S P Foods,19970,32.5
"Department for Business, Energy and Industrial Strategy",The Coal Authority,26/07/2017,Hardware Equipment & Support,Environment - Technical,Government Procurement Card,20113,33.33
"Department for Business, Energy and Industrial Strategy",The Coal Authority,30/09/2017,Hotel & Accommodation,Environment - Technical,Redfern Travel Ltd,19746,2089.26
"Department for Business, Energy and Industrial Strategy",The Coal Authority,20/07/2017,Incidentals,Environment - Technical,Government Procurement Card,20113,7
"Department for Business, Energy and Industrial Strategy",The Coal Authority,05/09/2017,Incidentals,Environment - Technical,Staff Expenses Control,19934,3
"Department for Business, Energy and Industrial Strategy",The Coal Authority,26/09/2017,Mileage Payments,Environment - Technical,Staff Expenses Control,19533,79.74
"Department for Business, Energy and Industrial Strategy",The Coal Authority,26/09/2017,Mileage Payments,Environment - Technical,Staff Expenses Control,19533,81.38
"Department for Business, Energy and Industrial Strategy",The Coal Authority,30/10/2017,Minewater Liability & Monitoring Sites - Ad-hoc,Environment - Technical,19917 Severn Trent Serv Ops Uk Ltd,20189,143.3
"Department for Business, Energy and Industrial Strategy",The Coal Authority,30/10/2017,Minewater Liability & Monitoring Sites - Ad-hoc,Environment - Technical,19917 Severn Trent Serv Ops Uk Ltd,20189,95.16
"Department for Business, Energy and Industrial Strategy",The Coal Authority,30/10/2017,Minewater Liability & Monitoring Sites - Ad-hoc,Environment - Technical,19917 Severn Trent Serv Ops Uk Ltd,20189,1693.36
"Department for Business, Energy and Industrial Strategy",The Coal Authority,30/10/2017,Minewater Liability & Monitoring Sites - Maint.,Environment - Technical,19917 Severn Trent Serv Ops Uk Ltd,20189,1550.44
"Department for Business, Energy and Industrial Strategy",The Coal Authority,30/10/2017,Minewater Liability & Monitoring Sites - Maint.,Environment - Technical,19917 Severn Trent Serv Ops Uk Ltd,20189,50.89
"Department for Business, Energy and Industrial Strategy",The Coal Authority,30/10/2017,Minewater Liability & Monitoring Sites - Maint.,Environment - Technical,19917 Severn Trent Serv Ops Uk Ltd,20189,3069.06
"Department for Business, Energy and Industrial Strategy",The Coal Authority,30/10/2017,Minewater Liability & Monitoring Sites - Maint.,Environment - Technical,19917 Severn Trent Serv Ops Uk Ltd,20189,286.37
"Department for Business, Energy and Industrial Strategy",The Coal Authority,30/10/2017,Minewater Liability & Monitoring Sites - Maint.,Environment - Technical,19917 Severn Trent Serv Ops Uk Ltd,20189,1265.15
"Department for Business, Energy and Industrial Strategy",The Coal Authority,30/10/2017,Minewater Liability & Monitoring Sites - Maint.,Environment - Technical,19917 Severn Trent Serv Ops Uk Ltd,20189,-344.55
"Department for Business, Energy and Industrial Strategy",The Coal Authority,30/10/2017,Minewater Liability & Monitoring Sites - Maint.,Environment - Technical,19917 Severn Trent Serv Ops Uk Ltd,20189,11.33
"Department for Business, Energy and Industrial Strategy",The Coal Authority,30/10/2017,Minewater Liability & Monitoring Sites - Maint.,Environment - Technical,19917 Severn Trent Serv Ops Uk Ltd,20189,277.44
"Department for Business, Energy and Industrial Strategy",The Coal Authority,30/10/2017,Minewater Liability & Monitoring Sites - Maint.,Environment - Technical,19917 Severn Trent Serv Ops Uk Ltd,20189,7333.96
"Department for Business, Energy and Industrial Strategy",The Coal Authority,30/10/2017,Minewater Liability & Monitoring Sites - Maint.,Environment - Technical,19917 Severn Trent Serv Ops Uk Ltd,20189,359.29
"Department for Business, Energy and Industrial Strategy",The Coal Authority,30/10/2017,Minewater Liability & Monitoring Sites - Maint.,Environment - Technical,19917 Severn Trent Serv Ops Uk Ltd,20189,23.88
"Department for Business, Energy and Industrial Strategy",The Coal Authority,30/10/2017,Minewater Liability & Monitoring Sites - Maint.,Environment - Technical,19917 Severn Trent Serv Ops Uk Ltd,20189,353.42
"Department for Business, Energy and Industrial Strategy",The Coal Authority,30/10/2017,Minewater Monitoring & Flow Measurement,Environment - Technical,19917 Severn Trent Serv Ops Uk Ltd,20189,3155.58
"Department for Business, Energy and Industrial Strategy",The Coal Authority,30/10/2017,Minewater Monitoring & Flow Measurement,Environment - Technical,19917 Severn Trent Serv Ops Uk Ltd,20189,3006.1
"Department for Business, Energy and Industrial Strategy",The Coal Authority,30/10/2017,Minewater Sampling - 'Non-operational' Sites,Environment - Technical,19917 Severn Trent Serv Ops Uk Ltd,20189,2787.95
"Department for Business, Energy and Industrial Strategy",The Coal Authority,30/10/2017,Minewater Sampling - 'Non-operational' Sites,Environment - Technical,19917 Severn Trent Serv Ops Uk Ltd,20189,310
"Department for Business, Energy and Industrial Strategy",The Coal Authority,30/10/2017,Minewater Sampling - 'Non-operational' Sites,Environment - Technical,19917 Severn Trent Serv Ops Uk Ltd,20189,401.47
"Department for Business, Energy and Industrial Strategy",The Coal Authority,30/10/2017,Minewater Sampling - 'Non-operational' Sites,Environment - Technical,19917 Severn Trent Serv Ops Uk Ltd,20189,125.03
"Department for Business, Energy and Industrial Strategy",The Coal Authority,13/09/2017,Minewater Site Investigations,Environment - Technical,Environmental Scientifics Grp,19520,42.05
"Department for Business, Energy and Industrial Strategy",The Coal Authority,18/10/2017,Minewater Site Surveys,Environment - Technical,Mott Macdonald Ltd,19845,9915
"Department for Business, Energy and Industrial Strategy",The Coal Authority,06/11/2017,Research & Development (Non BEIS Funded),Environment - Technical,ESA10 Restatement PI,20579,-9945
"Department for Business, Energy and Industrial Strategy",The Coal Authority,30/09/2017,Short Term Vehicle Hire,Environment - Technical,Enterprise Rent A Car,19423,120.47
"Department for Business, Energy and Industrial Strategy",The Coal Authority,30/09/2017,Short Term Vehicle Hire,Environment - Technical,Enterprise Rent A Car,19425,120.47
"Department for Business, Energy and Industrial Strategy",The Coal Authority,30/06/2017,Subsistence Allowances,Environment - Technical,Government Procurement Card,20113,29.33
"Department for Business, Energy and Industrial Strategy",The Coal Authority,30/06/2017,Subsistence Allowances,Environment - Technical,Government Procurement Card,20113,29.33
"Department for Business, Energy and Industrial Strategy",The Coal Authority,30/06/2017,Subsistence Allowances,Environment - Technical,Government Procurement Card,20113,29.33
"Department for Business, Energy and Industrial Strategy",The Coal Authority,10/07/2017,Subsistence Allowances,Environment - Technical,Government Procurement Card,20113,30.94
"Department for Business, Energy and Industrial Strategy",The Coal Authority,10/07/2017,Subsistence Allowances,Environment - Technical,Government Procurement Card,20113,26.52
"Department for Business, Energy and Industrial Strategy",The Coal Authority,12/07/2017,Subsistence Allowances,Environment - Technical,Government Procurement Card,20113,11.07
"Department for Business, Energy and Industrial Strategy",The Coal Authority,12/07/2017,Subsistence Allowances,Environment - Technical,Government Procurement Card,20113,16.62
"Department for Business, Energy and Industrial Strategy",The Coal Authority,12/07/2017,Subsistence Allowances,Environment - Technical,Government Procurement Card,20113,14.25
"Department for Business, Energy and Industrial Strategy",The Coal Authority,18/07/2017,Subsistence Allowances,Environment - Technical,Government Procurement Card,20113,5.09
